Workbook

Sheet rozcesti
C1: Orientační výpočet dotace z programu Nová zelená úsporám 2013
C9: A - Snižování energetické náročnosti stávajících rodinných domů. Možná kombinace s C - výměna neekologického zdroje tepla, instalace termického solárního systému nebo instalace systému nuceného větrání se zpětným získáváním (rekuperací) tepla.
C10: Dotace ze způsobilých výdajů 30, 40 nebo 55 %.
C12: B - Výstavba rodinných domů s velmi nízkou energetickou náročností.
C13: Dotace až 550 000 Kč.
C15: C - Efektivní využití zdrojů energie - výměna neekologických zdrojů tepla, instalace termických solárních systémů.
C16: Dotace až 100 000 Kč.
C18: D - Podpora na přípravu a zajištění realizace podporovaných opatření.
C19: Podpora na projekt, posudek, stavební dozor, testy vzduchotěsnosti.
C20: Dotace až 35 000 Kč.
C22: E - Bonusy za kombinaci vybraných opatření.
C23: Dotace až 10 000 Kč.

Sheet uvod A
B1: Orientační výpočet pro program Nová zelená úsporám 2013 - Oblast A - Snižování energetické náročnosti RD
B2: Tento výpočet nenahrazuje odborný posudek, ale slouží pro hrubé posouzení splnitelnosti podmínek programu.
B3: Tento nástroj umožňuje zadání tvarově jednoduchého RD s omezeným počtem stavebních konstrukcí.
B5: Kritéria dosažení dotace jsou následující:
B6: A.1: dotace 30 %
B7: A.1.1
B8: Podmínka 1 | C8: dosažení hodnoty průměrného součinitele prostupu tepla obálkou budovy Uem ve výši 0,95 násobku průměrného součinitele prostupu tepla referenční budovy
B9: Podmínka 2 | C9: snížení vypočtené hodnoty měrné roční potřeby tepla na vytápění EA oproti stavu před realizací opatření alespoň o 40 %
B11: A.1.2
B12: Podmínka 1 | C12: splnění maximální hodnoty součinitele prostupu tepla ve výši 0,95 násobku doporučené hodnoty součinitele prostupu tepla určeného dle ČSN 73 0540-2:2011 pro všechny měněné konstrukce
B13: Podmínka 2 | C13: dosažení vypočtené měrné roční potřeby tepla na vytápění EA nejvýše 70 kWh.m-2.rok-1
B14: Podmínka 3 | C14: snížení vypočtené hodnoty měrné roční potřeby tepla na vytápění po realizaci zateplení alespoň o 40 % oproti stavu před jeho realizací
B16: V případě památkově chráněných budov, ve smyslu zákona č. 406/2000 Sb., o hospodaření energií, ve znění pozdějších předpisů, je podmínkou poskytnutí podpory dosažení hodnoty součinitelů prostupu tepla měněných konstrukcí ve výši 0,95 násobku doporučené hodnoty součinitele prostupu tepla dle ČSN 73 0540-2:2011.
B18: A.2: dotace 40 %
B19: Podmínka 1 | C19: dosažení hodnoty průměrného součinitele prostupu tepla obálkou budovy Uem ve výši 0,85 násobku průměrného součinitele prostupu tepla referenční budovy
B20: Podmínka 2 | C20: dosažení hodnoty měrné roční potřeby tepla na vytápění EA nejvýše 55 kWh.m-2.rok-1
B21: Podmínka 3 | C21: snížení hodnoty měrné roční potřeby tepla na vytápění EA oproti stavu před realizací opatření alespoň o 50 %
B23: V případě památkově chráněných budov, ve smyslu zákona č. 406/2000 Sb., o hospodaření energií, ve znění pozdějších předpisů, je podmínkou poskytnutí podpory dosažení hodnoty součinitelů prostupu tepla měněných konstrukcí ve výši 0,85 násobku doporučené hodnoty součinitele prostupu tepla dle ČSN 73 0540-2:2011.
B25: A.3: dotace 55 %
B26: Podmínka 1 | C26: dosažení hodnoty průměrného součinitele prostupu tepla obálkou budovy Uem ve výši 0,75 násobku průměrného součinitele prostupu tepla referenční budovy
B27: Podmínka 2 | C27: dosažení hodnoty měrné roční potřeby tepla na vytápění EA nejvýše 35 kWh.m-2.rok-1
B28: Podmínka 3 | C28: snížení hodnoty měrné roční potřeby tepla na vytápění EA oproti stavu před realizací opatření alespoň o 60 %
B30: V případě památkově chráněných budov, ve smyslu zákona č. 406/2000 Sb., o hospodaření energií, ve znění pozdějších předpisů, je podmínkou poskytnutí podpory dosažení hodnoty součinitelů prostupu tepla měněných konstrukcí ve výši 0,75 násobku doporučené hodnoty součinitele prostupu tepla dle ČSN 73 0540-2:2011.

Sheet podminky B
B1: Podmínky programu Nová zelená úsporám 2013 - Oblast B - Výstavba budov s velmi nízkou energetickou náročností
B5: Kritéria dosažení dotace: | D5: B.1: dotace 400 000 Kč | E5: B.2: dotace 550 000 Kč
B6: Sledované parametry | C6: Označení Jednotky | D6: Oblast podpory | E6: Oblast podpory
D7: B.1 | E7: B.2
B8: Měrná roční potřeba tepla na vytápění | C8: EA [kWh/m2.rok] | D8: ≤ 20 | E8: ≤ 15
B10: Měrná neobnovitelná primární energie | C10: EpN,A [kWh/m2.rok] | D10: ≤ 90 | E10: ≤ 60
B12: Součinitel prostupu tepla jednotlivých konstrukcí na systémové hranici | C12: U [W/(m2.K)] | D12: ≤ Upas,20 | E12: ≤ Upas,20
B14: Průměrný součinitel prostupu tepla | C14: Uem W/(m2.K) | D14: ≤ 0,22 | E14: ≤ 0,22
B16: Neprůvzdušnost obálky budovy po dokončení stavby | C16: n50 [1/h]. | D16: ≤ 0,6 | E16: ≤ 0,6
B18: Nejvyšší teplota vzduchu v pobytové místnosti | C18: θai,max [°C] | D18: ≤ θai,max,N | E18: ≤ θai,max,N
B20: Povinná instalace systému nuceného větrání | C20: [-] | D20: Ano | E20: Ano
B21: Účinnost zpětného získávání tepla z odváděného vzduchu | C21: η [%] | D21: ≥ 75 | E21: ≥ 75

Sheet podminky C
B1: Podmínky programu Nová zelená úsporám 2013 - Oblast C - Efektivní využití zdrojů energie a instalace termických solárních systémů.
B3: Dotace slouží k podpoře výměny neekologických kotlů na tuhá a vyjmenovaná kapalná paliva v objektech s měrnou potřebou tepla na vytápění nižší než 150 kWh/m2.rok.
B4: Dále lze instalovat solární systém pro ohřev vody nebo pro ohřev vody a přitápění. | V4: =data!AD2 -> Bez výměny
B5: Podporována je také instalace větracích systémů s rekuperací tepla z odpadního vzduchu, ale pouze v kombinaci s komplexním zateplením budov (Oblast A). | V5: =data!AD3 -> Kotel na biomasu s ruční dodávkou paliva
V6: =data!AD4 -> Kotel na biomasu s automatickou dodávkou paliva
B7: Výměna neekologického zdroje tepla: | E7: Kotel na biomasu s automatickou dodávkou paliva | V7: =data!AD5 -> Krbová kamna na biomasu s výměníkem s ruční dodávkou paliva
B8: Instalace solárního systému: | E8: Solární systém pro ohřev vody | V8: =data!AD6 -> Krbová kamna na biomasu s výměníkem se samočinnou dodávkou paliva
V9: =data!AD7 -> Tepelné čerpadlo voda-voda
V10: =data!AD8 -> Tepelné čerpadlo země – voda
B11: Maximální výše způsobilých výdajů: | C11: Kč s DPH | E11: Maximální výše dotace | F11: Kč | V11: =data!AD9 -> Tepelné čerpadlo vzduch-voda
B12: Výměna neekologického zdroje tepla | C12: =data!AJ42 -> 145454.5455 | E12: =B12 -> Výměna neekologického zdroje tepla | F12: =data!AH42 -> 80000 | V12: =data!AD10 -> Plynový kondenzační kotel
B13: Instalace rekuperační jednotky | C13: =IF(E9=V20,100000,0) -> 0 | E13: Instalace rekuperační jednotky | F13: =C13 -> 0
B14: Instalace solárního systému | C14: =data!AJ47 -> 87500 | E14: =B14 -> Instalace solárního systému | F14: =data!AH47 -> 35000 | V14: =data!AD11 -> C3
B15: Dokumentace - posudek pro oblast C | C15: =IF((C12)>0,5000,0) -> 5000 | E15: =B15 -> Dokumentace - posudek pro oblast C | F15: =IF((F12)>0,5000,0) -> 5000 | V15: =data!AD12 -> Žádný
E16: Bonus za souběh opatření | F16: =IF(AND(F12>0,F14>0),10000,0) -> 10000 | V16: =data!AD13 -> Solární systém pro ohřev vody
B17: Celkem | C17: =SUM(C12:C15) -> 237954.5455 | E17: Celkem | F17: =SUM(F12:F16) -> 130000 | V17: =data!AD14 -> Solární systém pro ohřev vody a přitápění
B18: (Skutečné náklady projektu se mohou lišit podle místních podmínek). | E18: Podíl dotace | F18: =IFERROR(F17/C17,0) -> 0.5463228271
V19: Žádný
V20: Rovnotlaký systém s rekuperací

Sheet konstrukce
B1: Popis stavebních konstrukcí | I1: Zpět | J1: Pokračovat | K1: Nápověda
B3: Obvodové stěny mezi vytápěnou částí a venkovním prostředím | C3: Výška (m) | D3: Délka (m) | E3: Hrubá plocha včetně oken (m2) | F3: Materiál stěny | G3: Existující zateplení (cm) | I3: Okna a dveře - 1. typ (celková plocha) (m2) | J3: Typ oken nebo dveří | K3: Okna a dveře - 2. typ (celková plocha) (m2) | L3: Typ oken nebo dveří | M3: Čistá plocha stěny (m2)
B4: Severní stěna 1 | E4: =C4*D4 -> 0 | M4: =E4-I4-K4 -> 0
B5: Severní stěna 2 | E5: =C5*D5 -> 0 | M5: =E5-I5-K5 -> 0
B7: Jižní stěna 1 | E7: =C7*D7 -> 0 | M7: =E7-I7-K7 -> 0
B8: Jižní stěna 2 | E8: 0 | M8: =E8-I8-K8 -> 0
B10: Východní stěna 1 | E10: 0 | M10: =E10-I10-K10 -> 0
B11: Východní stěna 2 | E11: 0 | M11: =E11-I11-K11 -> 0
B13: Západní stěna 1 | E13: 0 | M13: =E13-I13-K13 -> 0
B14: Západní stěna 2 | E14: 0 | M14: =E14-I14-K14 -> 0
B16: Podlahy | C16: Délka (m) | D16: Šířka (m) | E16: Celková plocha (m2) | F16: Materiál
B17: Podlaha na zemině 1 | E17: =C17*D17 -> 0
B18: Podlaha na zemině 2 | E18: 0
B20: Podlaha nad nevytápěným sklepem 1 | E20: =C20*D20 -> 0
B21: Podlaha nad nevytápěným sklepem 2 | E21: 0
B23: Střechy a stropy | C23: Délka (m) | D23: Šířka (m) | E23: Celková plocha (m2) | F23: Materiál | G23: Existující dodatečná tepelná izolace (cm) | I23: Střešní okno (m2) | J23: Typ | K23: Plocha po odečtení oken (m2)
B24: Střecha plochá nebo do 45 ° 1 | E24: =C24*D24 -> 0 | K24: =E24-I24 -> 0
B25: Střecha plochá nebo do 45 ° 2 | E25: 0 | K25: =E25-I25 -> 0
B27: Střecha šikmá nad 45 ° 1 | E27: 0 | K27: =E27-I27 -> 0
B28: Střecha šikmá nad 45 ° 1 | E28: 0 | K28: =E28-I28 -> 0
B30: Strop pod půdou 1 | E30: 0
B31: Strop pod půdou 2 | E31: 0
B33: Ostatní | C33: Výška (m) | D33: Šířka (m) | E33: Celková plocha (m2) | F33: Materiál | G33: Dveře k nevytápěnému prostoru (m2) | I33: Typ dveří | J33: Čistá plocha stěny (m2)
B34: Stěna k nevytápěnému prostoru 1 | E34: =C34*D34 -> 0 | J34: =E34-G34 -> 0
B35: Stěna k nevytápěnému prostoru 2 | E35: 0 | J35: =E35-G35 -> 0

Sheet ostatni vstupy
B1: Ostatní vstupy | I1: Zpět | J1: Pokračovat | K1: Nápověda
B3: Objem vytápěné části budovy | E3: m3
B5: Pomocná kalkulačka pro základní tvar | D5: délka (m)
C6: a
C7: b
C8: c
C9: d
C10: e
C11: Výsledek | D11: =D6*D7*D8+D9*D10*D6+(D8-D9)*D6*D10 -> 0 | E11: m3
B19: Celková energeticky vztažná podlahová plocha | E19: m2 | F19: Plocha vytápěné části stanovená z vnějších rozměrů, tj. včetně tloušťky obvodových stěn. Pokud má dům více podlaží, sčítají se.

Sheet navrh opatreni a vysledky
B1: Návrh opatření a výsledky | I1: Zpět | K1: Nápověda | AB1: ponechat v původním stavu | AC1: 0 | AF1: Požadavek ZÚ na dotaci 30 % | AK1: =data!AD2 -> Bez výměny
AB2: zateplit na doporučenou hodnotu | AC2: 1 | AF2: Požadavek ZÚ na dotaci 40 % | AK2: =data!AD3 -> Kotel na biomasu s ruční dodávkou paliva
W3: kontrola zadání konstrukcí | X3: uznatelné náklady | Z3: opatření | AB3: zateplit na lepší než doporučenou hodnotu | AC3: 2 | AF3: Požadavek ZÚ na dotaci 55 % | AK3: =data!AD4 -> Kotel na biomasu s automatickou dodávkou paliva
B4: Severní stěna | W4: =vypocet!J4+vypocet!J5 -> 0 | X4: =IF(Z4=0,0,W4*data!$AB$3) -> 0 | Z4: =IF(C4=$AB$1,$AC$1,IF(C4=$AB$2,$AC$2,IF(C4=$AB$3,$AC$3,IF(C4=$AB$4,$AC$4,IF(C4=$AB$5,$AC$5,"chyba"))))) -> chyba | AB4: zateplit na min. hodnotu pro pasivní domy | AC4: 3 | AF4: Původní stav | AK4: =data!AD5 -> Krbová kamna na biomasu s výměníkem s ruční dodávkou paliva
B5: Jižní stěna | C5: ponechat v původním stavu | L5: 0.3 | M5: 0.4 | N5: 0.55 | W5: =vypocet!J7+vypocet!J8 -> 0 | X5: =IF(Z5=0,0,W5*data!$AB$3) -> 0 | Z5: =IF(C5=$AB$1,$AC$1,IF(C5=$AB$2,$AC$2,IF(C5=$AB$3,$AC$3,IF(C5=$AB$4,$AC$4,IF(C5=$AB$5,$AC$5,"chyba"))))) -> 0 | AB5: zateplit na max. hodnotu pro pasivní domy | AC5: 4 | AF5: Stav po opatřeních | AK5: =data!AD6 -> Krbová kamna na biomasu s výměníkem se samočinnou dodávkou paliva
B6: Východní stěna | C6: ponechat v původním stavu | E6: Původní měrná potřeba tepla na vytápění EV | J6: =IFERROR(vypocet!I207,0) -> 0 | K6: kWh/m2,rok | W6: =vypocet!J10+vypocet!J11 -> 0 | X6: =IF(Z6=0,0,W6*data!$AB$3) -> 0 | Z6: =IF(C6=$AB$1,$AC$1,IF(C6=$AB$2,$AC$2,IF(C6=$AB$3,$AC$3,IF(C6=$AB$4,$AC$4,IF(C6=$AB$5,$AC$5,"chyba"))))) -> 0 | AB6: ponechat v původním stavu | AC6: 0 | AK6: =data!AD7 -> Tepelné čerpadlo voda-voda
B7: Západní stěna | C7: ponechat v původním stavu | E7: Nová měrná potřeba tepla na vytápění EV | J7: =IFERROR(vypocet!AE207,0) -> 0 | K7: kWh/m2,rok | L7: 70 | M7: 55 | N7: 35 | W7: =vypocet!J13+vypocet!J14 -> 0 | X7: =IF(Z7=0,0,W7*data!$AB$3) -> 0 | Z7: =IF(C7=$AB$1,$AC$1,IF(C7=$AB$2,$AC$2,IF(C7=$AB$3,$AC$3,IF(C7=$AB$4,$AC$4,IF(C7=$AB$5,$AC$5,"chyba"))))) -> 0 | AB7: vyměnit za okna s dvojsklem | AC7: 1 | AK7: =data!AD8 -> Tepelné čerpadlo země – voda
E8: Pokles měrné potřeby tepla na vytápění | J8: =IFERROR((1-(J7/J6)),0) -> 0 | L8: 0.4 | M8: 0.5 | N8: 0.6 | AB8: vyměnit za okna s trojsklem | AC8: 2 | AK8: =data!AD9 -> Tepelné čerpadlo vzduch-voda
B9: Podlaha na zemině | C9: ponechat v původním stavu | J9: =J10/J11 ->  | W9: =vypocet!J17+vypocet!J18 -> 0 | X9: =IF(Z9=0,0,W9*data!AB8) -> 0 | Z9: =IF(C9=$AB$1,$AC$1,IF(C9=$AB$2,$AC$2,IF(C9=$AB$3,$AC$3,IF(C9=$AB$4,$AC$4,IF(C9=$AB$5,$AC$5,"chyba"))))) -> 0 | AB9: vyměnit za okna s trojsklem - nejlepší | AC9: 3 | AK9: =data!AD10 -> Plynový kondenzační kotel
B10: Podlaha nad sklepem | C10: ponechat v původním stavu | E10: Původní průměrný součinitel prostupu tepla Uem | J10: =IFERROR(vypocet!B79,0) -> 0 | K10: W/m2,K | W10: =vypocet!J20+vypocet!J21 -> 0 | X10: =IF(Z10=0,0,W10*data!AB7) -> 0 | Z10: =IF(C10=$AB$1,$AC$1,IF(C10=$AB$2,$AC$2,IF(C10=$AB$3,$AC$3,IF(C10=$AB$4,$AC$4,IF(C10=$AB$5,$AC$5,"chyba"))))) -> 0 | AK10: =data!AD11 -> C3
E11: Průměrný součinitel prostupu tepla - referenční budova Uem,R | J11: =IFERROR(vypocet!O67,0) -> 0 | K11: W/m2,K | AB11: pouze okny | AC11: 0 | AK11: =data!AD12 -> Žádný
B12: Střecha plochá nebo šikmá do 45° | C12: ponechat v původním stavu | E12: Nový průměrný součinitel prostupu tepla Uem | J12: =IFERROR(vypocet!X79,0) -> 0 | K12: W/m2,K | W12: =vypocet!J24+vypocet!J25 -> 0 | X12: =IF(Z12=0,0,W12*data!$AB$5) -> 0 | Z12: =IF(C12=$AB$1,$AC$1,IF(C12=$AB$2,$AC$2,IF(C12=$AB$3,$AC$3,IF(C12=$AB$4,$AC$4,IF(C12=$AB$5,$AC$5,"chyba"))))) -> 0 | AB12: minimální hygienické větrání zajištěno | AC12: 1 | AK12: =data!AD13 -> Solární systém pro ohřev vody
B13: Střecha šikmá nad 45° | C13: ponechat v původním stavu | E13: Dosažená hodnota vůči referenční budově | J13: =IFERROR(J12/J11,0) -> 0 | K13: - | L13: 0.95 | M13: 0.85 | N13: 0.75 | W13: =vypocet!J27+vypocet!J28 -> 0 | X13: =IF(Z13=0,0,W13*data!$AB$5) -> 0 | Z13: =IF(C13=$AB$1,$AC$1,IF(C13=$AB$2,$AC$2,IF(C13=$AB$3,$AC$3,IF(C13=$AB$4,$AC$4,IF(C13=$AB$5,$AC$5,"chyba"))))) -> 0 | AB13: instalovat rekuperační jednotku | AC13: 2 | AK13: =data!AD14 -> Solární systém pro ohřev vody a přitápění
B14: Strop pod nevytápěnou půdou | C14: ponechat v původním stavu | W14: =vypocet!J30+vypocet!J31 -> 0 | X14: =IF(Z14=0,0,W14*data!$AB$5) -> 0 | Z14: =IF(C14=$AB$1,$AC$1,IF(C14=$AB$2,$AC$2,IF(C14=$AB$3,$AC$3,IF(C14=$AB$4,$AC$4,IF(C14=$AB$5,$AC$5,"chyba"))))) -> 0 | AK14: =data!AD15 -> posudek
E15: Požadavek na zajištění hygienicky nutného větrání | J15: =IF(C27=AB11,"není splněn","je splněn") -> není splněn
B16: Stěny k nevytápěnému prostoru | C16: ponechat v původním stavu | W16: =vypocet!J34+vypocet!J35 -> 0 | X16: =IF(Z16=0,0,W16*data!AB6) -> 0 | Z16: =IF(C16=$AB$1,$AC$1,IF(C16=$AB$2,$AC$2,IF(C16=$AB$3,$AC$3,IF(C16=$AB$4,$AC$4,IF(C16=$AB$5,$AC$5,"chyba"))))) -> 0 | AK16: výměna zdroje
AK17: instalace solára
I18: Energetická náročnost | J18: Obálka budovy | K18: Úspora % | L18: Kvalita měněných konstrukcí | M18: Zajištění větrání | N18: Splnění podmínek dotace | AB18: splnění požadavků | AG18: součet
B19: Okna a dveře sever | C19: ponechat v původním stavu | E19: Dosažení dotace 30 % | G19: A.1.1 | J19: =IF(L13>J13,"+","-") -> + | K19: =IF(J8>=L8,"+","-") -> - | M19: =IF(C27=AB11,"-","+") -> - | N19: =AH19 -> NE | W19: =SUM(vypocet!J37:J40) -> 0 | X19: =IF(Z19=0,0,W19*data!$AB$4) -> 0 | Z19: =IF(C19=$AB$6,$AC$6,IF(C19=$AB$7,$AC$7,IF(C19=$AB$8,$AC$8,IF(C19=$AB$9,$AC$9,"chyba")))) -> 0 | AB19: =IF(I19="-",1,0) -> 0 | AC19: =IF(J19="-",1,0) -> 0 | AD19: 1 | AE19: 0 | AF19: 1 | AG19: =SUM(AB19:AF19) -> 2 | AH19: =IF(AG19>0,"NE","ANO") -> NE
B20: Okna a dveře jih | C20: ponechat v původním stavu | E20: Dosažení dotace 30 % | G20: A.1.2 | I20: =IF(J7<=L7,"+","-") -> + | K20: =IF(J8>=L8,"+","-") -> - | L20: =IF(Z25=0,"+","-") -> + | M20: =IF(C27=AB11,"-","+") -> - | N20: =AH20 -> NE | W20: =SUM(vypocet!J42:J45) -> 0 | X20: =IF(Z20=0,0,W20*data!$AB$4) -> 0 | Z20: =IF(C20=$AB$6,$AC$6,IF(C20=$AB$7,$AC$7,IF(C20=$AB$8,$AC$8,IF(C20=$AB$9,$AC$9,"chyba")))) -> 0 | AB20: =IF(I20="-",1,0) -> 0 | AC20: =IF(J20="-",1,0) -> 0 | AD20: =IF(K20="-",1,0) -> 1 | AE20: =IF(L20="-",1,0) -> 0 | AF20: =IF(M20="-",1,0) -> 1 | AG20: =SUM(AB20:AF20) -> 2 | AH20: =IF(AG20>0,"NE","ANO") -> NE
B21: Okna a dveře východ | C21: ponechat v původním stavu | E21: Dosažení dotace 40 % | G21: A.2 | I21: =IF(J7<=M7,"+","-") -> + | J21: =IF(M13>J13,"+","-") -> + | K21: =IF(J8>=M8,"+","-") -> - | M21: =IF(C27=AB11,"-","+") -> - | N21: NE | W21: =SUM(vypocet!J47:J50) -> 0 | X21: =IF(Z21=0,0,W21*data!$AB$4) -> 0 | Z21: 0 | AB21: 0 | AC21: 0 | AD21: 1 | AE21: 0 | AF21: 1 | AG21: 2 | AH21: NE
B22: Okna a dveře západ | C22: ponechat v původním stavu | E22: Dosažení dotace 55 % | G22: A.3 | I22: =IF(J7<=N7,"+","-") -> + | J22: =IF(N13>J13,"+","-") -> + | K22: =IF(J8>=N8,"+","-") -> - | M22: =IF(C27=AB11,"-","+") -> - | N22: NE | W22: =SUM(vypocet!J52:J55) -> 0 | X22: =IF(Z22=0,0,W22*data!$AB$4) -> 0 | Z22: 0 | AB22: 0 | AC22: 0 | AD22: 1 | AE22: 0 | AF22: 1 | AG22: 2 | AH22: NE
B23: Střešní okna | C23: ponechat v původním stavu | W23: =SUM(vypocet!J57:J60) -> 0 | X23: =IF(Z23=0,0,W23*data!$AB$4) -> 0 | Z23: =IF(C23=$AB$6,$AC$6,IF(C23=$AB$7,$AC$7,IF(C23=$AB$8,$AC$8,IF(C23=$AB$9,$AC$9,"chyba")))) -> 0 | AG23: dotace přidělena? | AH23: =IF(COUNTIF(AH19:AH22,"ANO")>0,1,0) -> 0
B24: Dveře do nevytápěného prostoru | C24: ponechat v původním stavu | W24: =SUM(vypocet!J61:J62) -> 0 | X24: =IF(Z24=0,0,W24*data!AB6) -> 0 | Z24: =IF(C24=$AB$1,$AC$1,IF(C24=$AB$2,$AC$2,IF(C24=$AB$3,$AC$3,IF(C24=$AB$4,$AC$4,IF(C24=$AB$5,$AC$5,"chyba"))))) -> 0
E25: Maximální výše způsobilých výdajů: | H25: Kč s DPH | K25: Výše dotace max: | N25: Kč | X25: =SUM(X4:X24) -> 0 | Y25: kontrola U,95 | Z25: =COUNTIF(Z4:Z24,1) -> 0
E26: Úprava stavebních konstrukcí | H26: =X25 -> 0 | K26: Úprava stavebních konstrukcí | N26: =IF($N$22="ANO",0.55,IF($N$21="ANO",0.4,IF(OR($N$20="ANO",$N$19="ANO"),0.3,0)))*H26 -> 0 | Y26: kontrola větrání | Z26: =IF(C27=$AB$11,$AC$11,IF(C27=$AB$12,$AC$12,IF(C27=$AB$13,$AC$13,"chyba"))) -> 0
B27: Větrání | C27: pouze okny | E27: Dokumentace - posudek pro oblast A | H27: =IF(AH23=1,10000,0) -> 0 | K27: Dokumentace | N27: =IF(AH23=1,H27,0) -> 0
E28: Dozor na stavbě | H28: =IF(AH23=1,5000,0) -> 0 | K28: Dozor na stavbě | N28: =IF(AH23=1,H28,0) -> 0
E29: Celkem | H29: =SUM(H26:H28) -> 0 | K29: Celkem | N29: =SUM(N26:N28) -> 0
B30: Výměna neekologického zdroje tepla: | C30: Bez výměny
E31: Maximální výše způsobilých výdajů: | H31: Kč s DPH | K31: Výše dotace max.: | N31: Kč
B32: Instalace solárního systému: | C32: Žádný | E32: Instalace rekuperační jednotky | H32: =IF(C27=AB13,100000,0) -> 0 | K32: Instalace rekuperační jednotky | N32: =IF(AH23=1,H32,0) -> 0
E33: Výměna neekologického zdroje tepla | H33: =IF(AH23=1,data!AG26,data!AJ26) -> 0 | K33: =E33 -> Výměna neekologického zdroje tepla | N33: =IF(J7<=150,IF(AH23=1,data!AE26,data!AH26),0) -> 0
E34: Instalace solárního systému | H34: =data!AG31 -> 0 | K34: =E34 -> Instalace solárního systému | N34: =data!AE31 -> 0
K35: Bonus za souběh opatření | N35: =IF(AND(N29>0,N34>0),10000,0) -> 0
E36: Celkem | H36: =SUM(H32:H34) -> 0 | K36: Celkem | N36: =SUM(N32:N35) -> 0
H38: Kč s DPH | N38: Kč
E39: Maximální způsobilé náklady dle ZÚ | H39: =H29+H36 -> 0 | K39: Maximální výše dotace | N39: =N29+N36 -> 0
E40: Podíl dotace na způsobilých nákladech | H40: =IF(H39=0,"",N39/H39) ->  | K40: Vlastní zdroje žadatele | N40: =H39-N39 -> 0
E41: (Skutečné náklady projektu se mohou lišit podle místních podmínek). | K41: (do výše způsobilých nákladů)

Sheet help
A1: Stavební konstrukce
A2: Plocha konstrukce se zadává pomocí rozměrů v metrech. Výsledek je v m2. Okna zadaná k dané konstrukci jsou od celkové plochy odečtena. Výpočet dále pracuje s hodnotou získanou po odečtení oken. | B2: zpět
A3: Pokud není snadné zadat plochu pomocí násobení dvou rozměrů, lze ji zadat tak, že se do jednoho z rozměrů vloží vypočtená celková plocha a do druhého číslice 1.
A4: Zadávají se pouze konstrukce mezi vytápěnou částí a venkovním prostředím nebo mezi vytápěnou a nevytápěnou částí budovy.
A5: U konstrukcí nad vytápěným prostorem se uvádějí tyto části: střecha nebo strop k nevytápěné půdě. Pokud je střecha bez zateplení, zadává se pouze strop pod půdou. | B5: zpět
A6: Kontrukce pod vytápěným prostorem mohou být buď podlaha na zemině nebo podlaha nad nevytápěným sklepem. | B6: zpět
A7: V každé stěně se zadávají příslušná okna nebo dveře.
A8: Existující zateplení předpokládá jako izolant polystyren nebo minerální vatu. Pro termoizolační omítku zadejte poloviční hodnotu. | B8: zpět
A9: Do objemu budovy se vkládá vypočtený objem vytápěné části budovy včetně všech vnitřních konstrukcí. Pro jednoduchý tvar je možné použít kalkulačku. | B9: zpět
A10: Zateplení na "lepší než doporučenou hodnotu" znamená splnění požadavku 0,95 * UR | B10: zpět
A11: U zateplení konstrukcí se předpokládá, že i když je daná konstrukce ze dvou částí s různými výchozími vlastnostmi, opatření se provede pro celou konstrukci. | B11: zpět

Sheet vypocet (hidden)
A1: Současný stav | N1: Referenční budova | W1: Nový stav
A2: výpočet Ht | C2: lanbda původní izolace | E2: 0.05 | N2: výpočet Ht | P2: 0.055 | W2: =A2 -> výpočet Ht
A3: konstrukce | B3: kód | C3: popis | D3: Uzáklad | E3: zateplení | F3: Rsi | G3: Rse | H3: Rpův | I3: Ucelk | J3: A | K3: b | L3: Ucelk*A*b | N3: konstrukce | Q3: Unorm | R3: A | S3: b | T3: Ucelk*A*b | W3: =A3 -> konstrukce | Y3: A | Z3: opatření | AA3: U původní | AB3: U norm | AC3: U norm 0,95 | AD3: U pas min | AE3: U pas max | AF3: U vybrané | AG3: b | AH3: U*A*b
A4: =konstrukce!B4 -> Severní stěna 1 | B4: 1 | C4: =VLOOKUP(vypocet!B4,data!$A$3:$B$23,2) -> Cihly plné 30 cm | D4: =VLOOKUP(B4,data!$A$3:$C$23,3) -> 1.67 | E4: =konstrukce!G4 -> 0 | F4: 0.13 | G4: 0.04 | H4: =1/D4-F4-G4 -> 0.4288023952 | I4: =1/(F4+G4+(E4/100)/$E$2+H4) -> 1.67 | J4: =konstrukce!M4 -> 0 | K4: 1 | L4: =I4*J4*K4 -> 0 | N4: =A4 -> Severní stěna 1 | Q4: 0.3 | R4: =J4 -> 0 | S4: =K4 -> 1 | T4: =Q4*R4*S4 -> 0 | W4: Severní stěna 1 | Y4: =R4 -> 0 | Z4: ='navrh opatreni a vysledky'!Z4 -> chyba | AA4: =I4 -> 1.67 | AB4: =VLOOKUP(B4,data!$A$3:$G$23,4) -> 0.25 | AC4: =VLOOKUP(B4,data!$A$3:$G$23,5) -> 0.2375 | AD4: =VLOOKUP(B4,data!$A$3:$G$23,6) -> 0.18 | AE4: =VLOOKUP(B4,data!$A$3:$G$23,7) -> 0.12 | AF4: =IF(Z4=0,AA4,IF(Z4=1,AB4,IF(Z4=2,AC4,IF(Z4=3,AD4,IF(Z4=4,AE4,"chyba"))))) -> chyba | AG4: =S4 -> 1 | AH4: =Y4*AF4*AG4 -> 
A5: =konstrukce!B5 -> Severní stěna 2 | B5: 1 | C5: =VLOOKUP(vypocet!B5,data!$A$3:$B$23,2) -> Cihly plné 30 cm | D5: =VLOOKUP(B5,data!$A$3:$C$23,3) -> 1.67 | E5: =konstrukce!G5 -> 0 | F5: 0.13 | G5: 0.04 | H5: =1/D5-F5-G5 -> 0.4288023952 | I5: =1/(F5+G5+(E5/100)/$E$2+H5) -> 1.67 | J5: =konstrukce!M5 -> 0 | K5: 1 | L5: =I5*J5*K5 -> 0 | N5: Severní stěna 2 | Q5: 0.3 | R5: 0 | S5: 1 | T5: =Q5*R5*S5 -> 0 | W5: Severní stěna 2 | Y5: =R5 -> 0 | Z5: =Z4 -> chyba | AA5: =I5 -> 1.67 | AB5: =VLOOKUP(B5,data!$A$3:$G$23,4) -> 0.25 | AC5: =VLOOKUP(B5,data!$A$3:$G$23,5) -> 0.2375 | AD5: =VLOOKUP(B5,data!$A$3:$G$23,6) -> 0.18 | AE5: =VLOOKUP(B5,data!$A$3:$G$23,7) -> 0.12 | AF5: =IF(Z5=0,AA5,IF(Z5=1,AB5,IF(Z5=2,AC5,IF(Z5=3,AD5,IF(Z5=4,AE5,"chyba"))))) -> chyba | AG5: =S5 -> 1 | AH5: =Y5*AF5*AG5 -> 
L6: 0
A7: =konstrukce!B7 -> Jižní stěna 1 | B7: 1 | C7: =VLOOKUP(vypocet!B7,data!$A$3:$B$23,2) -> Cihly plné 30 cm | D7: =VLOOKUP(B7,data!$A$3:$C$23,3) -> 1.67 | E7: =konstrukce!G7 -> 0 | F7: 0.13 | G7: 0.04 | H7: =1/D7-F7-G7 -> 0.4288023952 | I7: =1/(F7+G7+(E7/100)/$E$2+H7) -> 1.67 | J7: =konstrukce!M7 -> 0 | K7: 1 | L7: 0 | N7: Jižní stěna 1 | Q7: 0.3 | R7: 0 | S7: 1 | T7: 0 | W7: Jižní stěna 1 | Y7: 0 | Z7: ='navrh opatreni a vysledky'!Z5 -> 0 | AA7: 1.67 | AB7: =VLOOKUP(B7,data!$A$3:$G$23,4) -> 0.25 | AC7: =VLOOKUP(B7,data!$A$3:$G$23,5) -> 0.2375 | AD7: =VLOOKUP(B7,data!$A$3:$G$23,6) -> 0.18 | AE7: =VLOOKUP(B7,data!$A$3:$G$23,7) -> 0.12 | AF7: 1.67 | AG7: 1 | AH7: 0
A8: =konstrukce!B8 -> Jižní stěna 2 | B8: 1 | C8: =VLOOKUP(vypocet!B8,data!$A$3:$B$23,2) -> Cihly plné 30 cm | D8: =VLOOKUP(B8,data!$A$3:$C$23,3) -> 1.67 | E8: =konstrukce!G8 -> 0 | F8: 0.13 | G8: 0.04 | H8: 0.4288023952 | I8: =1/(F8+G8+(E8/100)/$E$2+H8) -> 1.67 | J8: =konstrukce!M8 -> 0 | K8: 1 | L8: 0 | N8: Jižní stěna 2 | Q8: 0.3 | R8: 0 | S8: 1 | T8: 0 | W8: Jižní stěna 2 | Y8: 0 | Z8: =Z7 -> 0 | AA8: 1.67 | AB8: =VLOOKUP(B8,data!$A$3:$G$23,4) -> 0.25 | AC8: =VLOOKUP(B8,data!$A$3:$G$23,5) -> 0.2375 | AD8: =VLOOKUP(B8,data!$A$3:$G$23,6) -> 0.18 | AE8: =VLOOKUP(B8,data!$A$3:$G$23,7) -> 0.12 | AF8: 1.67 | AG8: 1 | AH8: 0
L9: 0
A10: =konstrukce!B10 -> Východní stěna 1 | B10: 1 | C10: =VLOOKUP(vypocet!B10,data!$A$3:$B$23,2) -> Cihly plné 30 cm | D10: =VLOOKUP(B10,data!$A$3:$C$23,3) -> 1.67 | E10: =konstrukce!G10 -> 0 | F10: 0.13 | G10: 0.04 | H10: =1/D10-F10-G10 -> 0.4288023952 | I10: =1/(F10+G10+(E10/100)/$E$2+H10) -> 1.67 | J10: =konstrukce!M10 -> 0 | K10: 1 | L10: 0 | N10: Východní stěna 1 | Q10: 0.3 | R10: 0 | S10: 1 | T10: 0 | W10: Východní stěna 1 | Y10: 0 | Z10: ='navrh opatreni a vysledky'!Z6 -> 0 | AA10: 1.67 | AB10: =VLOOKUP(B10,data!$A$3:$G$23,4) -> 0.25 | AC10: =VLOOKUP(B10,data!$A$3:$G$23,5) -> 0.2375 | AD10: =VLOOKUP(B10,data!$A$3:$G$23,6) -> 0.18 | AE10: =VLOOKUP(B10,data!$A$3:$G$23,7) -> 0.12 | AF10: 1.67 | AG10: 1 | AH10: 0
A11: =konstrukce!B11 -> Východní stěna 2 | B11: 1 | C11: =VLOOKUP(vypocet!B11,data!$A$3:$B$23,2) -> Cihly plné 30 cm | D11: =VLOOKUP(B11,data!$A$3:$C$23,3) -> 1.67 | E11: =konstrukce!G11 -> 0 | F11: 0.13 | G11: 0.04 | H11: =1/D11-F11-G11 -> 0.4288023952 | I11: =1/(F11+G11+(E11/100)/$E$2+H11) -> 1.67 | J11: =konstrukce!M11 -> 0 | K11: 1 | L11: 0 | N11: Východní stěna 2 | Q11: 0.3 | R11: 0 | S11: 1 | T11: 0 | W11: Východní stěna 2 | Y11: 0 | Z11: =Z10 -> 0 | AA11: 1.67 | AB11: =VLOOKUP(B11,data!$A$3:$G$23,4) -> 0.25 | AC11: =VLOOKUP(B11,data!$A$3:$G$23,5) -> 0.2375 | AD11: =VLOOKUP(B11,data!$A$3:$G$23,6) -> 0.18 | AE11: =VLOOKUP(B11,data!$A$3:$G$23,7) -> 0.12 | AF11: 1.67 | AG11: 1 | AH11: 0
L12: 0
A13: =konstrukce!B13 -> Západní stěna 1 | B13: 1 | C13: =VLOOKUP(vypocet!B13,data!$A$3:$B$23,2) -> Cihly plné 30 cm | D13: =VLOOKUP(B13,data!$A$3:$C$23,3) -> 1.67 | E13: =konstrukce!G13 -> 0 | F13: 0.13 | G13: 0.04 | H13: =1/D13-F13-G13 -> 0.4288023952 | I13: =1/(F13+G13+(E13/100)/$E$2+H13) -> 1.67 | J13: =konstrukce!M13 -> 0 | K13: 1 | L13: 0 | N13: Západní stěna 1 | Q13: 0.3 | R13: 0 | S13: 1 | T13: 0 | W13: Západní stěna 1 | Y13: 0 | Z13: ='navrh opatreni a vysledky'!Z7 -> 0 | AA13: 1.67 | AB13: =VLOOKUP(B13,data!$A$3:$G$23,4) -> 0.25 | AC13: =VLOOKUP(B13,data!$A$3:$G$23,5) -> 0.2375 | AD13: =VLOOKUP(B13,data!$A$3:$G$23,6) -> 0.18 | AE13: =VLOOKUP(B13,data!$A$3:$G$23,7) -> 0.12 | AF13: 1.67 | AG13: 1 | AH13: 0
A14: =konstrukce!B14 -> Západní stěna 2 | B14: 1 | C14: =VLOOKUP(vypocet!B14,data!$A$3:$B$23,2) -> Cihly plné 30 cm | D14: =VLOOKUP(B14,data!$A$3:$C$23,3) -> 1.67 | E14: =konstrukce!G14 -> 0 | F14: 0.13 | G14: 0.04 | H14: =1/D14-F14-G14 -> 0.4288023952 | I14: =1/(F14+G14+(E14/100)/$E$2+H14) -> 1.67 | J14: =konstrukce!M14 -> 0 | K14: 1 | L14: 0 | N14: Západní stěna 2 | Q14: 0.3 | R14: 0 | S14: 1 | T14: 0 | W14: Západní stěna 2 | Y14: 0 | Z14: =Z13 -> 0 | AA14: 1.67 | AB14: =VLOOKUP(B14,data!$A$3:$G$23,4) -> 0.25 | AC14: =VLOOKUP(B14,data!$A$3:$G$23,5) -> 0.2375 | AD14: =VLOOKUP(B14,data!$A$3:$G$23,6) -> 0.18 | AE14: =VLOOKUP(B14,data!$A$3:$G$23,7) -> 0.12 | AF14: 1.67 | AG14: 1 | AH14: 0
L15: 0
L16: 0
A17: =konstrukce!B17 -> Podlaha na zemině 1 | B17: 1 | C17: =VLOOKUP(vypocet!B17,data!$A$67:$B$68,2) -> Podlaha na terénu bez izolace | D17: =VLOOKUP(B17,data!$A$67:$C$68,3) -> 1.7 | F17: 0.17 | H17: =1/D17-F17-G17 -> 0.4182352941 | I17: =1/(F17+G17+(E17/100)/$E$2+H17) -> 1.7 | J17: =konstrukce!E17 -> 0 | K17: 0.5 | L17: 0 | N17: Podlaha na zemině 1 | Q17: 0.45 | R17: 0 | S17: 0.5 | T17: 0 | W17: Podlaha na zemině 1 | Y17: 0 | Z17: ='navrh opatreni a vysledky'!Z9 -> 0 | AA17: 1.7 | AB17: =VLOOKUP(B17,data!$A$67:$G$68,4) -> 0.3 | AC17: =VLOOKUP(B17,data!$A$67:$G$68,5) -> 0.285 | AD17: =VLOOKUP(B17,data!$A$67:$G$68,6) -> 0.22 | AE17: =VLOOKUP(B17,data!$A$67:$G$68,7) -> 0.15 | AF17: 1.7 | AG17: 0.5 | AH17: 0
A18: =konstrukce!B18 -> Podlaha na zemině 2 | B18: 1 | C18: =VLOOKUP(vypocet!B18,data!$A$67:$B$68,2) -> Podlaha na terénu bez izolace | D18: =VLOOKUP(B18,data!$A$67:$C$68,3) -> 1.7 | F18: 0.17 | H18: =1/D18-F18-G18 -> 0.4182352941 | I18: =1/(F18+G18+(E18/100)/$E$2+H18) -> 1.7 | J18: =konstrukce!E18 -> 0 | K18: 0.5 | L18: 0 | N18: Podlaha na zemině 2 | Q18: 0.45 | R18: 0 | S18: 0.5 | T18: 0 | W18: Podlaha na zemině 2 | Y18: 0 | Z18: =Z17 -> 0 | AA18: 1.7 | AB18: =VLOOKUP(B18,data!$A$67:$G$68,4) -> 0.3 | AC18: =VLOOKUP(B18,data!$A$67:$G$689,5) -> 1.14 | AD18: =VLOOKUP(B18,data!$A$67:$G$68,6) -> 0.22 | AE18: =VLOOKUP(B18,data!$A$67:$G$68,7) -> 0.15 | AF18: 1.7 | AG18: 0.5 | AH18: 0
L19: 0
A20: =konstrukce!B20 -> Podlaha nad nevytápěným sklepem 1 | B20: 1 | C20: =VLOOKUP(vypocet!B20,data!$A$69:$B$70,2) -> Podlaha nad suterénem bez tep. izolace | D20: =VLOOKUP(B20,data!$A$69:$C$70,3) -> 1.53 | F20: 0.17 | G20: 0.04 | H20: =1/D20-F20-G20 -> 0.4435947712 | I20: =1/(F20+G20+(E20/100)/$E$2+H20) -> 1.53 | J20: =konstrukce!E20 -> 0 | K20: 0.43 | L20: 0 | N20: Podlaha nad nevytápěným sklepem 1 | Q20: 0.6 | R20: 0 | S20: 0.43 | T20: 0 | W20: Podlaha nad nevytápěným sklepem 1 | Y20: 0 | Z20: ='navrh opatreni a vysledky'!Z10 -> 0 | AA20: 1.53 | AB20: =VLOOKUP(B20,data!$A$69:$G$70,4) -> 0.3 | AC20: =VLOOKUP(B20,data!$A$69:$G$70,5) -> 0.285 | AD20: =VLOOKUP(B20,data!$A$69:$G$70,6) -> 0.22 | AE20: =VLOOKUP(B20,data!$A$69:$G$709,7) -> 0.6 | AF20: 1.53 | AG20: 0.43 | AH20: 0
A21: =konstrukce!B21 -> Podlaha nad nevytápěným sklepem 2 | B21: 1 | C21: =VLOOKUP(vypocet!B21,data!$A$69:$B$70,2) -> Podlaha nad suterénem bez tep. izolace | D21: =VLOOKUP(B21,data!$A$69:$C$70,3) -> 1.53 | F21: 0.17 | G21: 0.04 | H21: =1/D21-F21-G21 -> 0.4435947712 | I21: =1/(F21+G21+(E21/100)/$E$2+H21) -> 1.53 | J21: =konstrukce!E21 -> 0 | K21: 0.43 | L21: 0 | N21: Podlaha nad nevytápěným sklepem 2 | Q21: 0.6 | R21: 0 | S21: 0.43 | T21: 0 | W21: Podlaha nad nevytápěným sklepem 2 | Y21: 0 | Z21: =Z20 -> 0 | AA21: 1.53 | AB21: =VLOOKUP(B21,data!$A$69:$G$70,4) -> 0.3 | AC21: =VLOOKUP(B21,data!$A$69:$G$70,5) -> 0.285 | AD21: =VLOOKUP(B21,data!$A$67:$G$79,6) -> 0.22 | AE21: =VLOOKUP(B21,data!$A$69:$G$70,7) -> 0.15 | AF21: 1.53 | AG21: 0.43 | AH21: 0
L22: 0
A23: =konstrukce!B23 -> Střechy a stropy | L23: 0 | N23: Střechy a stropy | R23: 0 | S23: 0 | T23: 0 | W23: Střechy a stropy | Y23: 0 | AG23: 0 | AH23: 0
A24: =konstrukce!B24 -> Střecha plochá nebo do 45 ° 1 | B24: 3 | C24: =VLOOKUP(vypocet!B24,data!A44:G47,2) -> Střecha šikmá - izolace mezi krokvemi | D24: =VLOOKUP(B24,data!A44:G47,3) -> 1 | E24: =konstrukce!G24 -> 0 | F24: 0.1 | G24: 0.04 | H24: =1/D24-F24-G24 -> 0.86 | I24: =1/(F24+G24+(E24/100)/$E$2+H24) -> 1 | J24: =konstrukce!K24 -> 0 | K24: 1 | L24: 0 | N24: Střecha plochá nebo do 45 ° 1 | Q24: 0.24 | R24: =J24 -> 0 | S24: 1 | T24: 0 | W24: Střecha plochá nebo do 45 ° 1 | Y24: 0 | Z24: ='navrh opatreni a vysledky'!Z12 -> 0 | AA24: =I24 -> 1 | AB24: =VLOOKUP(B24,data!$A$44:$G$47,4) -> 0.16 | AC24: =VLOOKUP(B24,data!$A$44:$G$47,5) -> 0.152 | AD24: =VLOOKUP(B24,data!$A$44:$G$47,6) -> 0.15 | AE24: =VLOOKUP(B24,data!$A$44:$G$47,7) -> 0.1 | AF24: 1 | AG24: 1 | AH24: 0
A25: =konstrukce!B25 -> Střecha plochá nebo do 45 ° 2 | B25: 3 | C25: =VLOOKUP(vypocet!B25,data!A44:G47,2) -> Střecha šikmá - izolace mezi krokvemi | D25: =VLOOKUP(B25,data!A44:G47,3) -> 1 | E25: =konstrukce!G25 -> 0 | F25: 0.1 | G25: 0.04 | H25: =1/D25-F25-G25 -> 0.86 | I25: =1/(F25+G25+(E25/100)/$E$2+H25) -> 1 | J25: =konstrukce!K25 -> 0 | K25: 1 | L25: 0 | N25: Střecha plochá nebo do 45 ° 2 | Q25: 0.24 | R25: =J25 -> 0 | S25: 1 | T25: 0 | W25: Střecha plochá nebo do 45 ° 2 | Y25: 0 | Z25: =Z24 -> 0 | AA25: 1 | AB25: =VLOOKUP(B25,data!$A$44:$G$47,4) -> 0.16 | AC25: =VLOOKUP(B25,data!$A$44:$G$47,5) -> 0.152 | AD25: =VLOOKUP(B25,data!$A$44:$G$47,6) -> 0.15 | AE25: =VLOOKUP(B25,data!$A$44:$G$47,7) -> 0.1 | AF25: 1 | AG25: 1 | AH25: 0
L26: 0
A27: =konstrukce!B27 -> Střecha šikmá nad 45 ° 1 | B27: 1 | C27: =VLOOKUP(vypocet!B27,data!A50:G51,2) -> Střecha šikmá - izolace mezi krokvemi | D27: =VLOOKUP(B27,data!A50:G51,3) -> 0.28 | E27: =konstrukce!G27 -> 0 | F27: 0.1 | G27: 0.04 | H27: =1/D27-F27-G27 -> 3.431428571 | I27: =1/(F27+G27+(E27/100)/$E$2+H27) -> 0.28 | J27: =konstrukce!E27 -> 0 | K27: 1 | L27: 0 | N27: Střecha šikmá nad 45 ° 1 | Q27: 0.3 | R27: 0 | S27: 1 | T27: 0 | W27: Střecha šikmá nad 45 ° 1 | Y27: 0 | Z27: ='navrh opatreni a vysledky'!Z13 -> 0 | AA27: =I27 -> 0.28 | AB27: =VLOOKUP(B27,data!$A$50:$G$51,4) -> 0.2 | AC27: =VLOOKUP(B27,data!$A$50:$G$51,5) -> 0.19 | AD27: =VLOOKUP(B27,data!$A$50:$G$51,6) -> 0.18 | AE27: =VLOOKUP(B27,data!$A$50:$G$51,7) -> 0.12 | AF27: 0.28 | AG27: 1 | AH27: 0
A28: =konstrukce!B28 -> Střecha šikmá nad 45 ° 1 | B28: 1 | C28: =VLOOKUP(vypocet!B28,data!A5:G50,2) ->  | D28: =VLOOKUP(B28,data!A50:G51,3) -> 0.28 | E28: =konstrukce!G28 -> 0 | F28: 0.1 | G28: 0.04 | H28: =1/D28-F28-G28 -> 3.431428571 | I28: =1/(F28+G28+(E28/100)/$E$2+H28) -> 0.28 | J28: =konstrukce!E28 -> 0 | K28: 1 | L28: 0 | N28: Střecha šikmá nad 45 ° 1 | Q28: 0.3 | R28: 0 | S28: 1 | T28: 0 | W28: Střecha šikmá nad 45 ° 1 | Y28: 0 | Z28: =Z27 -> 0 | AA28: 0.28 | AB28: =VLOOKUP(B28,data!$A$50:$G$51,4) -> 0.2 | AC28: =VLOOKUP(B28,data!$A$50:$G$51,5) -> 0.19 | AD28: =VLOOKUP(B28,data!$A$50:$G$51,6) -> 0.18 | AE28: =VLOOKUP(B28,data!$A$50:$G$51,7) -> 0.12 | AF28: 0.28 | AG28: 1 | AH28: 0
L29: 0
A30: =konstrukce!B30 -> Strop pod půdou 1 | B30: 1 | C30: =VLOOKUP(vypocet!B30,data!A56:G57,2) -> Trámový strop | D30: =VLOOKUP(B30,data!A56:G57,3) -> 0.99 | E30: =konstrukce!G30 -> 0 | F30: 0.1 | G30: 0.04 | H30: =1/D30-F30-G30 -> 0.8701010101 | I30: =1/(F30+G30+(E30/100)/$E$2+H30) -> 0.99 | J30: =konstrukce!E30 -> 0 | K30: 0.83 | L30: 0 | N30: Strop pod půdou 1 | Q30: 0.3 | R30: 0 | S30: 0.83 | T30: 0 | W30: Strop pod půdou 1 | Y30: 0 | Z30: ='navrh opatreni a vysledky'!Z14 -> 0 | AA30: =I30 -> 0.99 | AB30: =VLOOKUP(B30,data!$A$56:$G$57,4) -> 0.2 | AC30: =VLOOKUP(B30,data!$A$56:$G$57,5) -> 0.19 | AD30: =VLOOKUP(B30,data!$A$56:$G$57,6) -> 0.15 | AE30: =VLOOKUP(B30,data!$A$56:$G$57,7) -> 0.1 | AF30: 0.99 | AG30: 0.83 | AH30: 0
A31: =konstrukce!B31 -> Strop pod půdou 2 | B31: 1 | C31: =VLOOKUP(vypocet!B31,data!A56:G57,2) -> Trámový strop | D31: =VLOOKUP(B31,data!A56:G57,3) -> 0.99 | E31: =konstrukce!G31 -> 0 | F31: 0.1 | G31: 0.04 | H31: =1/D31-F31-G31 -> 0.8701010101 | I31: =1/(F31+G31+(E31/100)/$E$2+H31) -> 0.99 | J31: =konstrukce!E31 -> 0 | K31: 0.83 | L31: 0 | N31: Strop pod půdou 2 | Q31: 0.3 | R31: 0 | S31: 0.83 | T31: 0 | W31: Strop pod půdou 2 | Y31: 0 | Z31: =Z30 -> 0 | AA31: 0.99 | AB31: =VLOOKUP(B31,data!$A$56:$G$57,4) -> 0.2 | AC31: =VLOOKUP(B31,data!$A$56:$G$57,5) -> 0.19 | AD31: =VLOOKUP(B31,data!$A$56:$G$57,6) -> 0.15 | AE31: =VLOOKUP(B31,data!$A$56:$G$57,7) -> 0.1 | AF31: 0.99 | AG31: 0.83 | AH31: 0
L32: 0
L33: 0
A34: =konstrukce!B34 -> Stěna k nevytápěnému prostoru 1 | B34: 15 | C34: =VLOOKUP(vypocet!B34,data!$A$118:$B$138,2) -> Moderní děrované cihly 30 cm | D34: =VLOOKUP(B34,data!$A$118:$C$138,3) -> 0.7 | F34: 0.13 | G34: 0.04 | H34: =1/D34-F34-G34 -> 1.258571429 | I34: =1/(F34+G34+(E34/100)/$E$2+H34) -> 0.7 | J34: =konstrukce!E34 -> 0 | K34: 0.49 | L34: 0 | N34: Stěna k nevytápěnému prostoru 1 | Q34: 0.6 | R34: 0 | S34: 0.49 | T34: 0 | W34: Stěna k nevytápěnému prostoru 1 | Y34: 0 | Z34: ='navrh opatreni a vysledky'!Z16 -> 0 | AA34: =I34 -> 0.7 | AB34: =VLOOKUP(B34,data!$A$118:$G$138,4) -> 0.4 | AC34: =VLOOKUP(B34,data!$A$13:$G$118,5) -> 0.38 | AD34: =VLOOKUP(B34,data!$A$13:$G$118,6) -> 0.3 | AE34: =VLOOKUP(B34,data!$A$13:$G$118,7) -> 0.2 | AF34: 0.7 | AG34: 0.49 | AH34: 0
A35: =konstrukce!B35 -> Stěna k nevytápěnému prostoru 2 | B35: 1 | C35: =VLOOKUP(vypocet!B35,data!$A$118:$B$138,2) -> Cihly plné 10 cm | D35: =VLOOKUP(B35,data!$A$118:$C$138,3) -> 2.87 | F35: 0.13 | G35: 0.04 | H35: =1/D35-F35-G35 -> 0.1784320557 | I35: =1/(F35+G35+(E35/100)/$E$2+H35) -> 2.87 | J35: =konstrukce!E35 -> 0 | K35: 0.49 | L35: 0 | N35: Stěna k nevytápěnému prostoru 2 | Q35: 0.6 | R35: 0 | S35: 0.49 | T35: 0 | W35: Stěna k nevytápěnému prostoru 2 | Y35: 0 | Z35: =Z34 -> 0 | AA35: 2.87 | AB35: =VLOOKUP(B35,data!$A$118:$G$138,4) -> 0.4 | AC35: =VLOOKUP(B35,data!$A$13:$G$118,5) -> 0.285 | AD35: =VLOOKUP(B35,data!$A$13:$G$118,6) -> 0.22 | AE35: =VLOOKUP(B35,data!$A$13:$G$118,7) -> 0.15 | AF35: 2.87 | AG35: 0.49 | AH35: 0
L36: 0 | M36: korekce dveře | AI36: korekce dveře | AK36: výměna oken
A37: Sever okno 11 | B37: 3 | C37: =VLOOKUP(vypocet!B37,data!$A$93:$B$110,2) -> okno zdvojené (sešroubované rámy) s dvěma skly | D37: =VLOOKUP(B37,data!$A$93:$C$103,3) -> 2.4 | I37: =D37 -> 2.4 | J37: =konstrukce!I4 -> 0 | K37: 1 | L37: 0 | M37: =IF(OR(B37=8,B37=11),-J37,0) -> 0 | N37: =A37 -> Sever okno 11 | Q37: 1.5 | R37: =J37 -> 0 | S37: =K37 -> 1 | T37: 0 | W37: Sever okno 11 | Y37: 0 | Z37: ='navrh opatreni a vysledky'!Z19 -> 0 | AA37: =I37 -> 2.4 | AB37: =VLOOKUP(B37,data!$A$93:$G$103,4) -> 1.2 | AC37: =VLOOKUP(B37,data!$A$93:$G$103,5) -> 1.14 | AD37: =VLOOKUP(B37,data!$A$93:$G$103,6) -> 0.8 | AE37: =VLOOKUP(B37,data!$A$93:$G$103,7) -> 0.6 | AF37: 2.4 | AG37: 1 | AH37: 0 | AI37: =M37 -> 0 | AK37: =IF(Z37>0,1,0) -> 0
A38: Sever okno 12 | B38: 3 | C38: =VLOOKUP(vypocet!B38,data!$A$93:$B$110,2) -> okno zdvojené (sešroubované rámy) s dvěma skly | D38: =VLOOKUP(B38,data!$A$93:$C$103,3) -> 2.4 | I38: =D38 -> 2.4 | J38: =konstrukce!K4 -> 0 | K38: 1 | L38: 0 | M38: =IF(OR(B38=8,B38=11),-J38,0) -> 0 | N38: Sever okno 12 | Q38: 1.5 | R38: 0 | S38: 1 | T38: 0 | W38: Sever okno 12 | Y38: 0 | Z38: =Z37 -> 0 | AA38: 2.4 | AB38: =VLOOKUP(B38,data!$A$93:$G$103,4) -> 1.2 | AC38: =VLOOKUP(B38,data!$A$93:$G$103,5) -> 1.14 | AD38: =VLOOKUP(B38,data!$A$93:$G$103,6) -> 0.8 | AE38: =VLOOKUP(B38,data!$A$93:$G$103,7) -> 0.6 | AF38: 2.4 | AG38: 1 | AH38: 0 | AI38: =M38 -> 0 | AK38: =IF(Z38>0,1,0) -> 0
A39: Sever okno 21 | B39: 1 | C39: =VLOOKUP(vypocet!B39,data!$A$93:$B$110,2) -> okno jednoduché s jedním sklem | D39: =VLOOKUP(B39,data!$A$93:$C$103,3) -> 4.5 | I39: 4.5 | J39: =konstrukce!I5 -> 0 | K39: 1 | L39: 0 | M39: 0 | N39: Sever okno 21 | Q39: 1.5 | R39: 0 | S39: 1 | T39: 0 | W39: Sever okno 21 | Y39: 0 | Z39: =Z37 -> 0 | AA39: 4.5 | AB39: =VLOOKUP(B39,data!$A$93:$G$103,4) -> 1.2 | AC39: =VLOOKUP(B39,data!$A$93:$G$103,5) -> 1.14 | AD39: =VLOOKUP(B39,data!$A$93:$G$103,6) -> 0.8 | AE39: =VLOOKUP(B39,data!$A$93:$G$103,7) -> 0.6 | AF39: 4.5 | AG39: 1 | AH39: 0 | AI39: 0 | AK39: 0
A40: Sever okno 22 | B40: 1 | C40: =VLOOKUP(vypocet!B40,data!$A$93:$B$110,2) -> okno jednoduché s jedním sklem | D40: =VLOOKUP(B40,data!$A$93:$C$103,3) -> 4.5 | I40: 4.5 | J40: =konstrukce!K5 -> 0 | K40: 1 | L40: 0 | M40: 0 | N40: Sever okno 22 | Q40: 1.5 | R40: 0 | S40: 1 | T40: 0 | W40: Sever okno 22 | Y40: 0 | Z40: =Z37 -> 0 | AA40: 4.5 | AB40: =VLOOKUP(B40,data!$A$93:$G$103,4) -> 1.2 | AC40: =VLOOKUP(B40,data!$A$93:$G$103,5) -> 1.14 | AD40: =VLOOKUP(B40,data!$A$93:$G$103,6) -> 0.8 | AE40: =VLOOKUP(B40,data!$A$93:$G$103,7) -> 0.6 | AF40: 4.5 | AG40: 1 | AH40: 0 | AI40: 0 | AK40: 0
L41: 0
A42: Jih okno 11 | B42: 3 | C42: =VLOOKUP(vypocet!B42,data!$A$93:$B$110,2) -> okno zdvojené (sešroubované rámy) s dvěma skly | D42: =VLOOKUP(B42,data!$A$93:$C$103,3) -> 2.4 | I42: =D42 -> 2.4 | J42: =konstrukce!I7 -> 0 | K42: 1 | L42: 0 | M42: 0 | N42: Jih okno 11 | Q42: 1.5 | R42: 0 | S42: 1 | T42: 0 | W42: Jih okno 11 | Y42: 0 | Z42: ='navrh opatreni a vysledky'!Z20 -> 0 | AA42: =I42 -> 2.4 | AB42: =VLOOKUP(B42,data!$A$93:$G$103,4) -> 1.2 | AC42: =VLOOKUP(B42,data!$A$93:$G$103,5) -> 1.14 | AD42: =VLOOKUP(B42,data!$A$93:$G$103,6) -> 0.8 | AE42: =VLOOKUP(B42,data!$A$93:$G$103,7) -> 0.6 | AF42: 2.4 | AG42: 1 | AH42: 0 | AI42: 0 | AK42: 0
A43: Jih okno 12 | B43: 1 | C43: =VLOOKUP(vypocet!B43,data!$A$93:$B$110,2) -> okno jednoduché s jedním sklem | D43: =VLOOKUP(B43,data!$A$93:$C$103,3) -> 4.5 | I43: =D43 -> 4.5 | J43: =konstrukce!K7 -> 0 | K43: 1 | L43: 0 | M43: 0 | N43: Jih okno 12 | Q43: 1.5 | R43: 0 | S43: 1 | T43: 0 | W43: Jih okno 12 | Y43: 0 | Z43: =Z42 -> 0 | AA43: 4.5 | AB43: =VLOOKUP(B43,data!$A$93:$G$103,4) -> 1.2 | AC43: =VLOOKUP(B43,data!$A$93:$G$103,5) -> 1.14 | AD43: =VLOOKUP(B43,data!$A$93:$G$103,6) -> 0.8 | AE43: =VLOOKUP(B43,data!$A$93:$G$103,7) -> 0.6 | AF43: 4.5 | AG43: 1 | AH43: 0 | AI43: 0 | AK43: 0
A44: Jih okno 21 | B44: 1 | C44: =VLOOKUP(vypocet!B44,data!$A$93:$B$110,2) -> okno jednoduché s jedním sklem | D44: =VLOOKUP(B44,data!$A$93:$C$103,3) -> 4.5 | I44: 4.5 | J44: =konstrukce!I8 -> 0 | K44: 1 | L44: 0 | M44: 0 | N44: Jih okno 21 | Q44: 1.5 | R44: 0 | S44: 1 | T44: 0 | W44: Jih okno 21 | Y44: 0 | Z44: =Z42 -> 0 | AA44: 4.5 | AB44: =VLOOKUP(B44,data!$A$93:$G$103,4) -> 1.2 | AC44: =VLOOKUP(B44,data!$A$93:$G$103,5) -> 1.14 | AD44: =VLOOKUP(B44,data!$A$93:$G$103,6) -> 0.8 | AE44: =VLOOKUP(B44,data!$A$93:$G$103,7) -> 0.6 | AF44: 4.5 | AG44: 1 | AH44: 0 | AI44: 0 | AK44: 0
A45: Jih okno 22 | B45: 1 | C45: =VLOOKUP(vypocet!B45,data!$A$93:$B$110,2) -> okno jednoduché s jedním sklem | D45: =VLOOKUP(B45,data!$A$93:$C$103,3) -> 4.5 | I45: 4.5 | J45: =konstrukce!K8 -> 0 | K45: 1 | L45: 0 | M45: 0 | N45: Jih okno 22 | Q45: 1.5 | R45: 0 | S45: 1 | T45: 0 | W45: Jih okno 22 | Y45: 0 | Z45: =Z42 -> 0 | AA45: 4.5 | AB45: =VLOOKUP(B45,data!$A$93:$G$103,4) -> 1.2 | AC45: =VLOOKUP(B45,data!$A$93:$G$103,5) -> 1.14 | AD45: =VLOOKUP(B45,data!$A$93:$G$103,6) -> 0.8 | AE45: =VLOOKUP(B45,data!$A$93:$G$103,7) -> 0.6 | AF45: 4.5 | AG45: 1 | AH45: 0 | AI45: 0 | AK45: 0
L46: 0 | M46: 0
A47: Východ okno 11 | B47: 3 | C47: =VLOOKUP(vypocet!B47,data!$A$93:$B$110,2) -> okno zdvojené (sešroubované rámy) s dvěma skly | D47: =VLOOKUP(B47,data!$A$93:$C$103,3) -> 2.4 | I47: =D47 -> 2.4 | J47: =konstrukce!I10 -> 0 | K47: 1 | L47: 0 | M47: 0 | N47: Východ okno 11 | Q47: 1.5 | R47: 0 | S47: 1 | T47: 0 | W47: Východ okno 11 | Y47: 0 | Z47: ='navrh opatreni a vysledky'!Z21 -> 0 | AA47: =I47 -> 2.4 | AB47: =VLOOKUP(B47,data!$A$93:$G$103,4) -> 1.2 | AC47: =VLOOKUP(B47,data!$A$93:$G$103,5) -> 1.14 | AD47: =VLOOKUP(B47,data!$A$93:$G$103,6) -> 0.8 | AE47: =VLOOKUP(B47,data!$A$93:$G$103,7) -> 0.6 | AF47: 2.4 | AG47: 1 | AH47: 0 | AI47: 0 | AK47: 0
A48: Východ okno 12 | B48: 1 | C48: =VLOOKUP(vypocet!B48,data!$A$93:$B$110,2) -> okno jednoduché s jedním sklem | D48: =VLOOKUP(B48,data!$A$93:$C$103,3) -> 4.5 | I48: =D48 -> 4.5 | J48: =konstrukce!K10 -> 0 | K48: 1 | L48: 0 | M48: 0 | N48: Východ okno 12 | Q48: 1.5 | R48: 0 | S48: 1 | T48: 0 | W48: Východ okno 12 | Y48: 0 | Z48: =Z47 -> 0 | AA48: 4.5 | AB48: =VLOOKUP(B48,data!$A$93:$G$103,4) -> 1.2 | AC48: =VLOOKUP(B48,data!$A$93:$G$103,5) -> 1.14 | AD48: =VLOOKUP(B48,data!$A$93:$G$103,6) -> 0.8 | AE48: =VLOOKUP(B48,data!$A$93:$G$103,7) -> 0.6 | AF48: 4.5 | AG48: 1 | AH48: 0 | AI48: 0 | AK48: 0
A49: Východ okno 21 | B49: 1 | C49: =VLOOKUP(vypocet!B49,data!$A$93:$B$110,2) -> okno jednoduché s jedním sklem | D49: =VLOOKUP(B49,data!$A$93:$C$103,3) -> 4.5 | I49: 4.5 | J49: =konstrukce!I11 -> 0 | K49: 1 | L49: 0 | M49: 0 | N49: Východ okno 21 | Q49: 1.5 | R49: 0 | S49: 1 | T49: 0 | W49: Východ okno 21 | Y49: 0 | Z49: =Z47 -> 0 | AA49: 4.5 | AB49: =VLOOKUP(B49,data!$A$93:$G$103,4) -> 1.2 | AC49: =VLOOKUP(B49,data!$A$93:$G$103,5) -> 1.14 | AD49: =VLOOKUP(B49,data!$A$93:$G$103,6) -> 0.8 | AE49: =VLOOKUP(B49,data!$A$93:$G$103,7) -> 0.6 | AF49: 4.5 | AG49: 1 | AH49: 0 | AI49: 0 | AK49: 0
A50: Východ okno 22 | B50: 1 | C50: =VLOOKUP(vypocet!B50,data!$A$93:$B$110,2) -> okno jednoduché s jedním sklem | D50: =VLOOKUP(B50,data!$A$93:$C$103,3) -> 4.5 | I50: 4.5 | J50: =konstrukce!K11 -> 0 | K50: 1 | L50: 0 | M50: 0 | N50: Východ okno 22 | Q50: 1.5 | R50: 0 | S50: 1 | T50: 0 | W50: Východ okno 22 | Y50: 0 | Z50: =Z47 -> 0 | AA50: 4.5 | AB50: =VLOOKUP(B50,data!$A$93:$G$103,4) -> 1.2 | AC50: =VLOOKUP(B50,data!$A$93:$G$103,5) -> 1.14 | AD50: =VLOOKUP(B50,data!$A$93:$G$103,6) -> 0.8 | AE50: =VLOOKUP(B50,data!$A$93:$G$103,7) -> 0.6 | AF50: 4.5 | AG50: 1 | AH50: 0 | AI50: 0 | AK50: 0
L51: 0 | M51: 0
A52: Západ okno 11 | B52: 3 | C52: =VLOOKUP(vypocet!B52,data!$A$93:$B$110,2) -> okno zdvojené (sešroubované rámy) s dvěma skly | D52: =VLOOKUP(B52,data!$A$93:$C$103,3) -> 2.4 | I52: =D52 -> 2.4 | J52: =konstrukce!I13 -> 0 | K52: 1 | L52: 0 | M52: 0 | N52: Západ okno 11 | Q52: 1.5 | R52: 0 | S52: 1 | T52: 0 | W52: Západ okno 11 | Y52: 0 | Z52: ='navrh opatreni a vysledky'!Z22 -> 0 | AA52: 2.4 | AB52: =VLOOKUP(B52,data!$A$93:$G$103,4) -> 1.2 | AC52: =VLOOKUP(B52,data!$A$93:$G$103,5) -> 1.14 | AD52: =VLOOKUP(B52,data!$A$93:$G$103,6) -> 0.8 | AE52: =VLOOKUP(B52,data!$A$93:$G$103,7) -> 0.6 | AF52: 2.4 | AG52: 1 | AH52: 0 | AI52: 0 | AK52: 0
A53: Západ okno 12 | B53: 8 | C53: =VLOOKUP(vypocet!B53,data!$A$93:$B$110,2) -> dveře dřevěné vchodové plné | D53: =VLOOKUP(B53,data!$A$93:$C$103,3) -> 2.3 | I53: =D53 -> 2.3 | J53: =konstrukce!K13 -> 0 | K53: 1 | L53: 0 | M53: 0 | N53: Západ okno 12 | Q53: 1.5 | R53: 0 | S53: 1 | T53: 0 | W53: Západ okno 12 | Y53: 0 | Z53: =Z52 -> 0 | AA53: 2.3 | AB53: =VLOOKUP(B53,data!$A$93:$G$103,4) -> 1.2 | AC53: =VLOOKUP(B53,data!$A$93:$G$103,5) -> 1.14 | AD53: =VLOOKUP(B53,data!$A$93:$G$103,6) -> 0.8 | AE53: =VLOOKUP(B53,data!$A$93:$G$103,7) -> 0.6 | AF53: 2.3 | AG53: 1 | AH53: 0 | AI53: 0 | AK53: 0
A54: Západ okno 21 | B54: 1 | C54: =VLOOKUP(vypocet!B54,data!$A$93:$B$110,2) -> okno jednoduché s jedním sklem | D54: =VLOOKUP(B54,data!$A$93:$C$103,3) -> 4.5 | I54: 4.5 | J54: =konstrukce!I14 -> 0 | K54: 1 | L54: 0 | M54: 0 | N54: Západ okno 21 | Q54: 1.5 | R54: 0 | S54: 1 | T54: 0 | W54: Západ okno 21 | Y54: 0 | Z54: =Z52 -> 0 | AA54: 4.5 | AB54: =VLOOKUP(B54,data!$A$93:$G$103,4) -> 1.2 | AC54: =VLOOKUP(B54,data!$A$93:$G$103,5) -> 1.14 | AD54: =VLOOKUP(B54,data!$A$93:$G$103,6) -> 0.8 | AE54: =VLOOKUP(B54,data!$A$93:$G$103,7) -> 0.6 | AF54: 4.5 | AG54: 1 | AH54: 0 | AI54: 0 | AK54: 0
A55: Západ okno 22 | B55: 1 | C55: =VLOOKUP(vypocet!B55,data!$A$93:$B$110,2) -> okno jednoduché s jedním sklem | D55: =VLOOKUP(B55,data!$A$93:$C$103,3) -> 4.5 | I55: 4.5 | J55: =konstrukce!K14 -> 0 | K55: 1 | L55: 0 | M55: 0 | N55: Západ okno 22 | Q55: 1.5 | R55: 0 | S55: 1 | T55: 0 | W55: Západ okno 22 | Y55: 0 | Z55: =Z52 -> 0 | AA55: 4.5 | AB55: =VLOOKUP(B55,data!$A$93:$G$103,4) -> 1.2 | AC55: =VLOOKUP(B55,data!$A$93:$G$103,5) -> 1.14 | AD55: =VLOOKUP(B55,data!$A$93:$G$103,6) -> 0.8 | AE55: =VLOOKUP(B55,data!$A$93:$G$103,7) -> 0.6 | AF55: 4.5 | AG55: 1 | AH55: 0 | AI55: 0 | AK55: 0
L56: 0
A57: Střešní okno 1 | B57: 1 | C57: =VLOOKUP(vypocet!B57,data!$A$104:$B$110,2) -> okno střešní jednoduché s jedním sklem | D57: =VLOOKUP(B57,data!$A$104:$C$107,3) -> 4.5 | I57: 4.5 | J57: =konstrukce!I27 -> 0 | K57: 1 | L57: 0 | N57: Střešní okno 1 | Q57: 1.4 | R57: 0 | S57: 1 | T57: 0 | W57: Střešní okno 1 | Y57: 0 | Z57: ='navrh opatreni a vysledky'!Z23 -> 0 | AA57: 4.5 | AB57: =VLOOKUP(B57,data!$A$104:$G$110,4) -> 1.1 | AC57: =VLOOKUP(B57,data!$A$104:$G$110,5) -> 1.045 | AD57: =VLOOKUP(B57,data!$A$104:$G$110,6) -> 0.9 | AE57: =VLOOKUP(B57,data!$A$104:$G$110,7) -> 0.9 | AF57: 4.5 | AG57: 1 | AH57: 0 | AK57: 0
A58: Střešní okno 2 | B58: 1 | C58: =VLOOKUP(vypocet!B58,data!$A$104:$B$110,2) -> okno střešní jednoduché s jedním sklem | D58: =VLOOKUP(B58,data!$A$104:$C$107,3) -> 4.5 | I58: 4.5 | J58: =konstrukce!I28 -> 0 | K58: 1 | L58: 0 | N58: Střešní okno 2 | Q58: 1.4 | R58: 0 | S58: 1 | T58: 0 | W58: Střešní okno 2 | Y58: 0 | Z58: =Z57 -> 0 | AA58: 4.5 | AB58: =VLOOKUP(B58,data!$A$104:$G$110,4) -> 1.1 | AC58: =VLOOKUP(B58,data!$A$104:$G$110,5) -> 1.045 | AD58: =VLOOKUP(B58,data!$A$104:$G$110,6) -> 0.9 | AE58: =VLOOKUP(B58,data!$A$104:$G$110,7) -> 0.9 | AF58: 4.5 | AG58: 1 | AH58: 0 | AK58: 0
A59: Střešní okno 3 | B59: 3 | C59: =VLOOKUP(vypocet!B59,data!$A$104:$B$110,2) -> okno střešní zdvojené s dvěma skly | D59: =VLOOKUP(B59,data!$A$104:$C$107,3) -> 2.4 | I59: 2.4 | J59: =konstrukce!$I$24 -> 0 | K59: 1 | L59: 0 | N59: Střešní okno 3 | Q59: 1.4 | R59: 0 | S59: 1 | T59: 0 | W59: Střešní okno 3 | Y59: 0 | Z59: =Z57 -> 0 | AA59: 2.4 | AB59: =VLOOKUP(B59,data!$A$104:$G$110,4) -> 1.1 | AC59: =VLOOKUP(B59,data!$A$104:$G$110,5) -> 1.045 | AD59: =VLOOKUP(B59,data!$A$104:$G$110,6) -> 0.9 | AE59: =VLOOKUP(B59,data!$A$104:$G$110,7) -> 0.9 | AF59: 2.4 | AG59: 1 | AH59: 0 | AK59: 0
A60: Střešní okno 4 | B60: 3 | C60: =VLOOKUP(vypocet!B60,data!$A$104:$B$110,2) -> okno střešní zdvojené s dvěma skly | D60: =VLOOKUP(B60,data!$A$104:$C$107,3) -> 2.4 | I60: 2.4 | J60: =konstrukce!$I$25 -> 0 | K60: 1 | L60: 0 | N60: Střešní okno 4 | Q60: 1.4 | R60: 0 | S60: 1 | T60: 0 | W60: Střešní okno 4 | Y60: 0 | Z60: =Z57 -> 0 | AA60: 2.4 | AB60: =VLOOKUP(B60,data!$A$104:$G$110,4) -> 1.1 | AC60: =VLOOKUP(B60,data!$A$104:$G$110,5) -> 1.045 | AD60: =VLOOKUP(B60,data!$A$104:$G$110,6) -> 0.9 | AE60: =VLOOKUP(B60,data!$A$104:$G$110,7) -> 0.9 | AF60: 2.4 | AG60: 1 | AH60: 0 | AK60: 0
A61: Dveře do nevyt. prostoru | B61: 1 | C61: =VLOOKUP(vypocet!B61,data!$A$140:$B$141,2) -> Dveře vnitřní plné | D61: =VLOOKUP(B61,data!$A$140:$C$141,3) -> 2 | I61: =D61 -> 2 | J61: =konstrukce!G34 -> 0 | K61: 0.6 | L61: 0 | N61: Dveře do nevyt. prostoru | Q61: 2 | R61: 0 | S61: 0.6 | T61: 0 | W61: Dveře do nevyt. prostoru | Y61: 0 | Z61: ='navrh opatreni a vysledky'!Z24 -> 0 | AA61: 2 | AB61: =VLOOKUP(B61,data!$A$140:$G$141,4) -> 2.3 | AC61: =VLOOKUP(B61,data!$A$140:$G$141,5) -> 2.185 | AD61: =VLOOKUP(B61,data!$A$140:$G$141,6) -> 1.7 | AE61: =VLOOKUP(B61,data!$A$140:$G$141,7) -> 1.7 | AF61: 2 | AG61: 0.6 | AH61: 0
A62: Dveře do nevyt. prostoru | B62: 1 | C62: =VLOOKUP(vypocet!B62,data!$A$140:$B$141,2) -> Dveře vnitřní plné | D62: =VLOOKUP(B62,data!$A$140:$C$141,3) -> 2 | I62: 2 | J62: =konstrukce!G35 -> 0 | K62: 0.6 | L62: 0 | N62: Dveře do nevyt. prostoru | Q62: 2 | R62: 0 | S62: 0.6 | T62: 0 | W62: Dveře do nevyt. prostoru | Y62: 0 | Z62: =Z61 -> 0 | AA62: =I62 -> 2 | AB62: =VLOOKUP(B62,data!$A$140:$G$141,4) -> 2.3 | AC62: =VLOOKUP(B62,data!$A$140:$G$141,5) -> 2.185 | AD62: =VLOOKUP(B62,data!$A$140:$G$141,6) -> 1.7 | AE62: =VLOOKUP(B62,data!$A$140:$G$141,7) -> 1.7 | AF62: 2 | AG62: 0.6 | AH62: 0
A63: suma A | J63: =SUM(J4:J62) -> 0 | N63: suma A | R63: =J63 -> 0 | W63: suma A | Y63: =SUM(Y4:Y62) -> 0 | AH63: 0 | AK63: =COUNTIF(AK37:AK62,1) -> 0 | AL63: počet vyměněných oken
A64: tepelné mosty | E64: delta U | I64: 0.1 | J64: =SUM(J4:J62) -> 0 | L64: =I64*J64 -> 0 | N64: tepelné mosty | P64: delta U | Q64: 0.02 | R64: =SUM(R4:R36) -> 0 | T64: =Q64*R64 -> 0 | W64: tepelné mosty | AA64: delta U | AE64: =0.1-(0.1-0.02)*AK65 -> 0.1 | AF64: =Y63 -> 0 | AH64: =AE64*AF64 -> 0 | AK64: =COUNT(AK37:AK60) -> 20 | AL64: celkem
A65: HT | L65: =SUM(L4:L64) -> 0 | N65: HT | T65: =SUM(T4:T64) -> 0 | W65: HT | AH65: =SUM(AH4:AH64) ->  | AK65: =AK63/AK64 -> 0 | AL65: podíl měněných
A66: Ht | B66: =L65 -> 0 | C66: W/K | N66: Ht | O66: =T65 -> 0 | P66: W/K | W66: Ht | X66: =AH65 ->  | Y66: W/K
A67: HV | N67: UemR | O67: =IF(O66/R63<0.5,O66/R63,0.5) ->  | W67: UemR | X67: =IF(X66/Y63<0.5,X66/Y63,0.5) -> 
A68: objem vzduchu v zóně | B68: ='ostatni vstupy'!D3*D68 -> 0 | C68: m3 | D68: 0.8 | W68: =A68 -> objem vzduchu v zóně | X68: =B68 -> 0
A69: větrací tok | B69: 0.3 | C69: h-1 | N69: Upožadavek dotace | O69: stěna vnější, střecha nad 45 - lehká | P69: 0.2 | Q69: 0.3 | W69: větrací tok | X69: =B69 -> 0.3 | Y69: =C69 -> h-1
A70: větrací tok | B70: =B68*B69 -> 0 | C70: m3/h | O70: stěna vnější, střecha nad 45 - těžká | P70: 0.25 | Q70: 0.38 | W70: větrací tok | X70: =X68*X69 -> 0 | Y70: m3/h | Z70: rekuperace | AA70: =IF('navrh opatreni a vysledky'!C27='navrh opatreni a vysledky'!AB13,1,0) -> 0 | AB70: 0.75
A71: HV | B71: =0.34*B70 -> 0 | C71: W/K | O71: střecha plochá a šikmá do 45 | P71: 0.16 | Q71: 0.24 | W71: HV | X71: =IF(AA70=0,0.34*X70,0.34*X70*(1-AB70)) -> 0 | Y71: W/K
O72: strop s podlahou nad venkovním prostorem | P72: 0.16 | Q72: 0.24 | W72: 0
A73: HC | B73: =B71+L65 -> 0 | O73: strop pod nevyt. půdou (se střechou bez tepelné izolace) | P73: 0.2 | Q73: 0.3 | W73: HC | X73: 0
A74: tis | B74: 20 | C74: °C | O74: podlaha a stěna k zemině (vyt prostor) | P74: 0.3 | Q74: 0.45 | W74: tis | X74: 20 | Y74: °C
O75: strop a stěna z vyt. do nevyt. | P75: 0.4 | Q75: 0.6 | W75: 0
A76: Celková podlahová plocha | B76: ='ostatni vstupy'!D19 -> 0 | C76: m2 | D76: stanovená z vnějších rozměrů | O76: stěna k sousednímu objektu | P76: 0.75 | Q76: 1.05 | W76: Celková podlahová plocha | X76: =B76 -> 0 | Y76: =C76 -> m2 | Z76: =D76 -> stanovená z vnějších rozměrů
A77: Počet osob | B77: =B76/40 -> 0 | C77: osob | D77: 40 m2/os z vnějších rozměrů | O77: volné | P77: 0 | Q77: 0 | W77: Počet osob | X77: 0 | Y77: osob | Z77: 40 m2/os z vnějších rozměrů
A78: redukce na vnitřní plochu | B78: =C78*B76 -> 0 | C78: 0.9 | O78: volné | P78: 0 | Q78: 0 | W78: redukce na vnitřní plochu | X78: =Y78*X76 -> 0 | Y78: 0.9
A79: Uem | B79: =B66/J63 ->  | O79: volné | P79: 0 | Q79: 0 | W79: Uem | X79: =X66/AF64 -> 
O80: volné | P80: 0 | Q80: 0
A82: Měrná tepelná ztráta | W82: Měrná tepelná ztráta
J84: leden | K84: únor | L84: březen | M84: duben | N84: květen | O84: červen | P84: červenec | Q84: srpen | R84: září | S84: říjen | T84: listopad | U84: prosinec | AF84: leden | AG84: únor | AH84: březen | AI84: duben | AJ84: květen | AK84: červen | AL84: červenec | AM84: srpen | AN84: září | AO84: říjen | AP84: listopad | AQ84: prosinec
A85: Celková měrná zráta | F85: H | G85: W/K | I85: =B73 -> 0 | J85: =I85 -> 0 | K85: =J85 -> 0 | L85: 0 | M85: 0 | N85: 0 | O85: 0 | P85: 0 | Q85: 0 | R85: 0 | S85: 0 | T85: 0 | U85: 0 | W85: Celková měrná zráta | AB85: H | AC85: W/K | AE85: =X73 -> 0 | AF85: =AE85 -> 0 | AG85: =AF85 -> 0 | AH85: =AG85 -> 0 | AI85: =AH85 -> 0 | AJ85: =AI85 -> 0 | AK85: =AJ85 -> 0 | AL85: =AK85 -> 0 | AM85: =AL85 -> 0 | AN85: =AM85 -> 0 | AO85: =AN85 -> 0 | AP85: =AO85 -> 0 | AQ85: =AP85 -> 0
A86: Venkovní výpočtová teplota pro ztrátu | F86: Te | G86: °C | I86: -12 | W86: Venkovní výpočtová teplota pro ztrátu | AB86: Te | AC86: °C | AE86: -12
A87: Výpočtová tepelná ztráta - výběr PVSO, PVNO, HV, NV | G87: kW | I87: =I85*($B$74-$M$892)/1000 -> 0 | W87: Výpočtová tepelná ztráta - výběr PVSO, PVNO, HV, NV | AC87: kW | AE87: =AE85*($B$74-$M$892)/1000 -> 0
A88: Měsíc | J88: leden | K88: únor | L88: březen | M88: duben | N88: květen | O88: červen | P88: červenec | Q88: srpen | R88: září | S88: říjen | T88: listopad | U88: prosinec | W88: Měsíc | AF88: leden | AG88: únor | AH88: březen | AI88: duben | AJ88: květen | AK88: červen | AL88: červenec | AM88: srpen | AN88: září | AO88: říjen | AP88: listopad | AQ88: prosinec
A89: Délka | F89: t | G89: [dny] | I89: =SUM(J89:U89) -> 365 | J89: 31 | K89: 28 | L89: 31 | M89: 30 | N89: 31 | O89: 30 | P89: 31 | Q89: 31 | R89: 30 | S89: 31 | T89: 30 | U89: 31 | W89: Délka | AB89: t | AC89: [dny] | AE89: =SUM(AF89:AQ89) -> 365 | AF89: 31 | AG89: 28 | AH89: 31 | AI89: 30 | AJ89: 31 | AK89: 30 | AL89: 31 | AM89: 31 | AN89: 30 | AO89: 31 | AP89: 30 | AQ89: 31
A90: Počet hodin | F90: t | G90: [h] | I90: =24*I89 -> 8760 | J90: =24*J89 -> 744 | K90: =24*K89 -> 672 | L90: =24*L89 -> 744 | M90: =24*M89 -> 720 | N90: =24*N89 -> 744 | O90: 720 | P90: 744 | Q90: 744 | R90: 720 | S90: 744 | T90: 720 | U90: 744 | W90: Počet hodin | AB90: t | AC90: [h] | AE90: =24*AE89 -> 8760 | AF90: =24*AF89 -> 744 | AG90: =24*AG89 -> 672 | AH90: =24*AH89 -> 744 | AI90: =24*AI89 -> 720 | AJ90: =24*AJ89 -> 744 | AK90: 720 | AL90: 744 | AM90: 744 | AN90: 720 | AO90: 744 | AP90: 720 | AQ90: 744
A91: Průměrná venkovní teplota | F91: Te | G91: [°C] | J91: =data!N3 -> -1 | K91: =data!O3 -> 1 | L91: =data!P3 -> 4 | M91: =data!Q3 -> 9 | N91: =data!R3 -> 14.6 | O91: =data!S3 -> 17 | P91: =data!T3 -> 18.2 | Q91: =data!U3 -> 18.8 | R91: =data!V3 -> 13.8 | S91: =data!W3 -> 9.4 | T91: =data!X3 -> 4 | U91: =data!Y3 -> -0.5 | W91: Průměrná venkovní teplota | AB91: Te | AC91: [°C] | AF91: =data!N3 -> -1 | AG91: =data!O3 -> 1 | AH91: =data!P3 -> 4 | AI91: =data!Q3 -> 9 | AJ91: =data!R3 -> 14.6 | AK91: =data!S3 -> 17 | AL91: =data!T3 -> 18.2 | AM91: =data!U3 -> 18.8 | AN91: =data!V3 -> 13.8 | AO91: =data!W3 -> 9.4 | AP91: =data!X3 -> 4 | AQ91: =data!Y3 -> -0.5
A92: Teplotní rozdíl | F92: Dte | G92: [°C] | J92: =$B$74-J91 -> 21 | K92: 19 | L92: 16 | M92: 11 | N92: 5.4 | O92: 3 | P92: 1.8 | Q92: 1.2 | R92: 6.2 | S92: 10.6 | T92: 16 | U92: 20.5 | W92: Teplotní rozdíl | AB92: Dte | AC92: [°C] | AF92: =$B$74-AF91 -> 21 | AG92: 19 | AH92: 16 | AI92: 11 | AJ92: 5.4 | AK92: 3 | AL92: 1.8 | AM92: 1.2 | AN92: 6.2 | AO92: 10.6 | AP92: 16 | AQ92: 20.5
A94: Suma tepelných ztrát prostupem tepla | F94: Qt | G94: [kWh] | I94: =SUM(J94:U94) -> 0 | J94: =IF(J91>$B$74,0,0.001*$B$66*J92*J90) -> 0 | K94: =IF(K91>$B$74,0,0.001*$B$66*K92*K90) -> 0 | L94: 0 | M94: 0 | N94: 0 | O94: 0 | P94: 0 | Q94: 0 | R94: 0 | S94: 0 | T94: 0 | U94: 0 | W94: Suma tepelných ztrát prostupem tepla | AB94: Qt | AC94: [kWh] | AE94: =SUM(AF94:AQ94) ->  | AF94: =IF(AF91>$X$74,0,0.001*$X$66*AF92*AF90) ->  | AG94: =IF(AG91>$X$74,0,0.001*$X$66*AG92*AG90) -> 
A96: Suma tepelných ztrát budovy / rok na ohřev větracího vzduchu - NV výběr TNI 730330 nebo ČSN EN ISO 13790 | F96: Qnv | G96: [kWh] | W96: Suma tepelných ztrát budovy / rok na ohřev větracího vzduchu - NV výběr TNI 730330 nebo ČSN EN ISO 13790 | AB96: Qnv | AC96: [kWh]
A97: Suma tepelných ztrát budovy / rok na ohřev vzd. pr. netěsnostmi - NV výběr TNI 730330 nebo ČSN EN ISO 13790 | F97: Qnv | G97: [kWh] | W97: Suma tepelných ztrát budovy / rok na ohřev vzd. pr. netěsnostmi - NV výběr TNI 730330 nebo ČSN EN ISO 13790 | AB97: Qnv | AC97: [kWh]
A98: Suma tepelných ztrát větráním | F98: Qv | G98: [kWh] | I98: =SUM(J98:U98) -> 0 | J98: =IF(J91>$B$74,0,0.001*$B$71*J92*$J$90) -> 0 | K98: 0 | L98: 0 | M98: 0 | N98: 0 | O98: 0 | P98: 0 | Q98: 0 | R98: 0 | S98: 0 | T98: 0 | U98: 0 | W98: Suma tepelných ztrát větráním | AB98: Qv | AC98: [kWh] | AE98: =SUM(AF98:AQ98) -> 0 | AF98: =IF(AF91>$X$74,0,0.001*$X$71*AF92*$J$90) -> 0 | AG98: =IF(AG91>$X$74,0,0.001*$X$71*AG92*$J$90) -> 0 | AH98: 0 | AI98: 0 | AJ98: 0 | AK98: 0 | AL98: 0 | AM98: 0 | AN98: 0 | AO98: 0 | AP98: 0 | AQ98: 0
A100: Suma tepelných ztrát budovy / rok - výběr PVSO, PVNO, HV, NV | F100: Ql | G100: [kWh] | I100: =SUM(J100:U100) -> 0 | J100: =J94+J98 -> 0 | K100: =K94+K98 -> 0 | L100: 0 | M100: 0 | N100: 0 | O100: 0 | P100: 0 | Q100: 0 | R100: 0 | S100: 0 | T100: 0 | U100: 0 | W100: Suma tepelných ztrát budovy / rok - výběr PVSO, PVNO, HV, NV | AB100: Ql | AC100: [kWh] | AE100: =SUM(AF100:AQ100) ->  | AF100: =AF94+AF98 ->  | AG100: =AG94+AG98 -> 
A101: Suma tepelných ztrát budovy / rok - výběr PVSO, PVNO, HV, NV | F101: Ql | G101: [GJ] | I101: =I100/(1000/3.6) -> 0 | W101: Suma tepelných ztrát budovy / rok - výběr PVSO, PVNO, HV, NV | AB101: Ql | AC101: [GJ] | AE101: =AE100/(1000/3.6) -> 
A103: Tepelné zisky | W103: Tepelné zisky
A104: Časová konstanta zóny | W104: Časová konstanta zóny
A105: Tepelná kapacita na 1m2 | F105: C | G105: kJ/m2/K | I105: 165 | W105: Tepelná kapacita na 1m2 | AB105: C | AC105: kJ/m2/K | AE105: 165
A106: Celková tepelná kapacita | F106: C | G106: kJ/K | I106: =I105*B76 -> 0 | W106: Celková tepelná kapacita | AB106: C | AC106: kJ/K | AE106: =AE105*X76 -> 0
A107: Celková tepelná kapacita | F107: C | G107: [Wh/K] | I107: =I106/3.6 -> 0 | W107: Celková tepelná kapacita | AB107: C | AC107: [Wh/K] | AE107: =AE106/3.6 -> 0
A108: Časová konstanta zóny - výběr PV, NV | F108: t | G108: [hod] | I108: =I107/I85 ->  | W108: Časová konstanta zóny - výběr PV, NV | AB108: t | AC108: [hod] | AE108: =AE107/AE85 -> 
A110: Vnitřní tepelné zisky dle TNI 73 0330 | W110: Vnitřní tepelné zisky dle TNI 73 0330
A111: osoby a vybavení | G111: [W] | I111: =B78*(1.5*0.7+3*0.2) -> 0 | W111: osoby a vybavení | AC111: [W] | AE111: =X78*(1.5*0.7+3*0.2) -> 0
I112: 1 | AE112: 1
A113: osvětlení | G113: [W] | I113: =4500*0.85/I151*B78 -> 0 | W113: osvětlení | AC113: [W] | AE113: =4500*0.85/AE151*X78 -> 0
A114: Vnitřní zisky - stálá produkce bez ohledu na obsazenost | G114: [W] | W114: Vnitřní zisky - stálá produkce bez ohledu na obsazenost | AC114: [W]
A115: Celkové vnitřní tepelné zisky | F115: Fi | G115: [W] | I115: =I113+I111 -> 0 | W115: Celkové vnitřní tepelné zisky | AB115: Fi | AC115: [W] | AE115: =AE113+AE111 -> 0
A117: Vnitřní tepelné zisky použité ve výpočtu | W117: Vnitřní tepelné zisky použité ve výpočtu
G118: [W] | I118: =I115 -> 0 | AC118: [W] | AE118: =AE115 -> 0
A119: Solární tepelné zisky | W119: Solární tepelné zisky
A120: Plocha oken (čistá) | G120: m2 | I120: S | J120: J | K120: V | L120: Z | M120: H | W120: Plocha oken (čistá) | AC120: m2 | AE120: S | AF120: J | AG120: V | AH120: Z | AI120: H
A121: Průčelní stěny | I121: =konstrukce!I4+konstrukce!I5+konstrukce!K4+konstrukce!K5+SUM(M37:M40) -> 0 | J121: =konstrukce!I7+konstrukce!I8+konstrukce!K7+konstrukce!K8+SUM(M42:M45) -> 0 | K121: =konstrukce!I10+konstrukce!I11+konstrukce!K10+konstrukce!K11+SUM(M47:M50) -> 0 | L121: =konstrukce!I13+konstrukce!I14+konstrukce!K14+SUM(M52:M55) -> 0 | M121: =konstrukce!I27+konstrukce!I28 -> 0 | W121: Průčelní stěny | AE121: =I121 -> 0 | AF121: =J121 -> 0 | AG121: 0 | AH121: =L121 -> 0 | AI121: 0
A123: Korekční činitel zasklení | I123: S | J123: J | K123: V | L123: Z | M123: H | W123: Korekční činitel zasklení | AE123: S | AF123: J | AG123: V | AH123: Z | AI123: H
A124: Průčelní stěny | I124: 0.7 | J124: 0.7 | K124: 0.7 | L124: 0.7 | M124: 0.75 | W124: Průčelní stěny | AE124: 0.75 | AF124: 0.75 | AG124: 0.75 | AH124: 0.75 | AI124: 0.75
A126: Korekční činitel stínění horizontem | I126: S | J126: J | K126: V | L126: Z | M126: H | W126: Korekční činitel stínění horizontem | AE126: S | AF126: J | AG126: V | AH126: Z | AI126: H
A127: Průčelní stěny | I127: 0.7 | J127: 0.7 | K127: 0.7 | L127: 0.7 | M127: 1 | W127: Průčelní stěny | AE127: 1 | AF127: 1 | AG127: 1 | AH127: 1 | AI127: 1
A129: Úhel stínění markýzou ° | I129: S | J129: J | K129: V | L129: Z | M129: H | W129: Úhel stínění markýzou ° | AE129: S | AF129: J | AG129: V | AH129: Z | AI129: H
A130: Průčelní stěny | I130: 1 | J130: 1 | K130: 1 | L130: 1 | M130: 1 | W130: Průčelní stěny | AE130: 1 | AF130: 1 | AG130: 1 | AH130: 1 | AI130: 1
A132: Korekční činitel stínění markýzou ° | I132: S | J132: J | K132: V | L132: Z | M132: H | W132: Korekční činitel stínění markýzou ° | AE132: S | AF132: J | AG132: V | AH132: Z | AI132: H
A133: Průčelní stěny | I133: 1 | J133: 1 | K133: 1 | L133: 1 | M133: 1 | W133: Průčelní stěny | AE133: 1 | AF133: 1 | AG133: 1 | AH133: 1 | AI133: 1
A135: Úhel stínění bočním žebrem ° | I135: S | J135: J | K135: V | L135: Z | M135: H | W135: Úhel stínění bočním žebrem ° | AE135: S | AF135: J | AG135: V | AH135: Z | AI135: H
A136: Průčelní stěny | I136: 1 | J136: 1 | K136: 1 | L136: 1 | M136: 1 | W136: Průčelní stěny | AE136: 1 | AF136: 1 | AG136: 1 | AH136: 1 | AI136: 1
A138: Korekční činitel stínění bočním žebrem ° | I138: S | J138: J | K138: V | L138: Z | M138: H | W138: Korekční činitel stínění bočním žebrem ° | AE138: S | AF138: J | AG138: V | AH138: Z | AI138: H
A139: Průčelní stěny | I139: 1 | J139: 1 | K139: 1 | L139: 1 | M139: 1 | W139: Průčelní stěny | AE139: 1 | AF139: 1 | AG139: 1 | AH139: 1 | AI139: 1
A141: Celková propustnost solárního záření | I141: S | J141: J | K141: V | L141: Z | M141: H | W141: Celková propustnost solárního záření | AE141: S | AF141: J | AG141: V | AH141: Z | AI141: H | AK141: =AE141 -> S | AL141: =AF141 -> J | AM141: V | AN141: Z | AO141: =AI141 -> H
A142: Průčelní stěny | I142: 0.75 | J142: 0.75 | K142: 0.75 | L142: 0.75 | M142: 0.75 | W142: Průčelní stěny | AE142: =VLOOKUP(Z37,AJ142:AO145,2) -> 0.75 | AF142: =VLOOKUP(Z42,AJ142:AO145,3) -> 0.75 | AG142: =VLOOKUP(Z47,AJ142:AO145,4) -> 0.75 | AH142: =VLOOKUP(Z52,AJ142:AO145,5) -> 0.75 | AI142: =VLOOKUP(Z57,AJ142:AO145,6) -> 0.75 | AJ142: 0 | AK142: =I142 -> 0.75 | AL142: =J142 -> 0.75 | AM142: 0.75 | AN142: 0.75 | AO142: 0.75
AJ143: 1 | AK143: 0.67 | AL143: 0.67 | AM143: 0.67 | AN143: 0.67 | AO143: 0.67
A144: Sběrná plocha oken | I144: S | J144: J | K144: V | L144: Z | M144: H | W144: Sběrná plocha oken | AE144: S | AF144: J | AG144: V | AH144: Z | AI144: H | AJ144: 2 | AK144: 0.5 | AL144: 0.5 | AM144: 0.5 | AN144: 0.5 | AO144: 0.5
A145: Průčelní stěny | I145: =I121*I124*I127*I133*I139*I142 -> 0 | J145: =J121*J124*J127*J133*J139*J142 -> 0 | K145: =K121*K124*K127*K133*K139*K142 -> 0 | L145: =L121*L124*L127*L133*L139*L142 -> 0 | M145: =M121*M124*M127*M133*M139*M142 -> 0 | W145: Průčelní stěny | AE145: =AE121*AE124*AE127*AE133*AE139*AE142 -> 0 | AF145: =AF121*AF124*AF127*AF133*AF139*AF142 -> 0 | AG145: =AG121*AG124*AG127*AG133*AG139*AG142 -> 0 | AH145: =AH121*AH124*AH127*AH133*AH139*AH142 -> 0 | AI145: =AI121*AI124*AI127*AI133*AI139*AI142 -> 0 | AJ145: 3 | AK145: 0.6 | AL145: 0.6 | AM145: 0.6 | AN145: 0.6 | AO145: 0.6
M146: Suma | AI146: Suma
A147: Celkem | I147: =I145 -> 0 | J147: =J145 -> 0 | K147: 0 | L147: 0 | M147: =SUM(I147:L147) -> 0 | W147: Celkem | AE147: =AE145 -> 0 | AF147: =AF145 -> 0 | AG147: 0 | AH147: 0 | AI147: =SUM(AE147:AH147) -> 0
A149: Měsíc | J149: leden | K149: únor | L149: březen | M149: duben | N149: květen | O149: červen | P149: červenec | Q149: srpen | R149: září | S149: říjen | T149: listopad | U149: prosinec | W149: Měsíc | AF149: leden | AG149: únor | AH149: březen | AI149: duben | AJ149: květen | AK149: červen | AL149: červenec | AM149: srpen | AN149: září | AO149: říjen | AP149: listopad | AQ149: prosinec
A150: Délka | F150: t | G150: [dny] | I150: =SUM(J150:U150) -> 365 | J150: 31 | K150: 28 | L150: 31 | M150: 30 | N150: 31 | O150: 30 | P150: 31 | Q150: 31 | R150: 30 | S150: 31 | T150: 30 | U150: 31 | W150: Délka | AB150: t | AC150: [dny] | AE150: =SUM(AF150:AQ150) -> 365 | AF150: 31 | AG150: 28 | AH150: 31 | AI150: 30 | AJ150: 31 | AK150: 30 | AL150: 31 | AM150: 31 | AN150: 30 | AO150: 31 | AP150: 30 | AQ150: 31
A151: Počet hodin | F151: t | G151: [h] | I151: =24*I150 -> 8760 | J151: =24*J150 -> 744 | K151: =24*K150 -> 672 | L151: =24*L150 -> 744 | M151: =24*M150 -> 720 | N151: =24*N150 -> 744 | O151: 720 | P151: 744 | Q151: 744 | R151: 720 | S151: 744 | T151: 720 | U151: 744 | W151: Počet hodin | AB151: t | AC151: [h] | AE151: =24*AE150 -> 8760 | AF151: =24*AF150 -> 744 | AG151: =24*AG150 -> 672 | AH151: =24*AH150 -> 744 | AI151: =24*AI150 -> 720 | AJ151: =24*AJ150 -> 744 | AK151: 720 | AL151: 744 | AM151: 744 | AN151: 720 | AO151: 744 | AP151: 720 | AQ151: 744
A152: Průměrná venkovní teplota | F152: Te | G152: [°C] | J152: =data!N3 -> -1 | K152: =data!O3 -> 1 | L152: =data!P3 -> 4 | M152: =data!Q3 -> 9 | N152: =data!R3 -> 14.6 | O152: =data!S3 -> 17 | P152: =data!T3 -> 18.2 | Q152: =data!U3 -> 18.8 | R152: =data!V3 -> 13.8 | S152: =data!W3 -> 9.4 | T152: =data!X3 -> 4 | U152: =data!Y3 -> -0.5 | W152: Průměrná venkovní teplota | AB152: Te | AC152: [°C] | AF152: =data!N3 -> -1 | AG152: =data!O3 -> 1 | AH152: =data!P3 -> 4 | AI152: =data!Q3 -> 9 | AJ152: =data!R3 -> 14.6 | AK152: =data!S3 -> 17 | AL152: =data!T3 -> 18.2 | AM152: =data!U3 -> 18.8 | AN152: =data!V3 -> 13.8 | AO152: =data!W3 -> 9.4 | AP152: =data!X3 -> 4 | AQ152: =data!Y3 -> -0.5
A153: Teplotní rozdíl | F153: Dte | G153: [°C] | J153: =$B$74-J152 -> 21 | K153: 19 | L153: 16 | M153: 11 | N153: 5.4 | O153: 3 | P153: 1.8 | Q153: 1.2 | R153: 6.2 | S153: 10.6 | T153: 16 | U153: 20.5 | W153: Teplotní rozdíl | AB153: Dte | AC153: [°C] | AF153: =$B$74-AF152 -> 21 | AG153: 19 | AH153: 16 | AI153: 11 | AJ153: 5.4 | AK153: 3 | AL153: 1.8 | AM153: 1.2 | AN153: 6.2 | AO153: 10.6 | AP153: 16 | AQ153: 20.5
A155: Intenzita slunečního záření | W155: Intenzita slunečního záření
A156: S | F156: Is | G156: [kWh/m2] | J156: =data!N4 -> 7 | K156: =data!O4 -> 13 | L156: =data!P4 -> 23 | M156: =data!Q4 -> 32 | N156: =data!R4 -> 47 | O156: =data!S4 -> 52 | P156: =data!T4 -> 47 | Q156: =data!U4 -> 38 | R156: =data!V4 -> 24 | S156: =data!W4 -> 17 | T156: =data!X4 -> 9 | U156: =data!Y4 -> 6 | W156: S | AB156: Is | AC156: [kWh/m2] | AF156: =data!N4 -> 7 | AG156: =data!O4 -> 13 | AH156: =data!P4 -> 23 | AI156: =data!Q4 -> 32 | AJ156: =data!R4 -> 47 | AK156: =data!S4 -> 52 | AL156: =data!T4 -> 47 | AM156: =data!U4 -> 38 | AN156: =data!V4 -> 24 | AO156: =data!W4 -> 17 | AP156: =data!X4 -> 9 | AQ156: =data!Y4 -> 6
A157: J | F157: Is | G157: [kWh/m2] | J157: =data!N5 -> 50 | K157: =data!O5 -> 56 | L157: =data!P5 -> 82 | M157: =data!Q5 -> 95 | N157: =data!R5 -> 97 | O157: =data!S5 -> 87 | P157: =data!T5 -> 93 | Q157: =data!U5 -> 100 | R157: =data!V5 -> 95 | S157: =data!W5 -> 75 | T157: =data!X5 -> 36 | U157: =data!Y5 -> 29 | W157: J | AB157: Is | AC157: [kWh/m2] | AF157: =data!N5 -> 50 | AG157: =data!O5 -> 56 | AH157: =data!P5 -> 82 | AI157: =data!Q5 -> 95 | AJ157: =data!R5 -> 97 | AK157: =data!S5 -> 87 | AL157: =data!T5 -> 93 | AM157: =data!U5 -> 100 | AN157: =data!V5 -> 95 | AO157: =data!W5 -> 75 | AP157: =data!X5 -> 36 | AQ157: =data!Y5 -> 29
A158: V | F158: Is | G158: [kWh/m2] | J158: =data!N6 -> 15 | K158: =data!O6 -> 26 | L158: =data!P6 -> 51 | M158: =data!Q6 -> 74 | N158: =data!R6 -> 104 | O158: =data!S6 -> 115 | P158: =data!T6 -> 100 | Q158: =data!U6 -> 88 | R158: =data!V6 -> 60 | S158: =data!W6 -> 34 | T158: =data!X6 -> 14 | U158: =data!Y6 -> 11 | W158: V | AB158: Is | AC158: [kWh/m2] | AF158: =data!N6 -> 15 | AG158: =data!O6 -> 26 | AH158: =data!P6 -> 51 | AI158: =data!Q6 -> 74 | AJ158: =data!R6 -> 104 | AK158: =data!S6 -> 115 | AL158: =data!T6 -> 100 | AM158: =data!U6 -> 88 | AN158: =data!V6 -> 60 | AO158: =data!W6 -> 34 | AP158: =data!X6 -> 14 | AQ158: =data!Y6 -> 11
A159: Z | F159: Is | G159: [kWh/m2] | J159: =data!N7 -> 20 | K159: =data!O7 -> 28 | L159: =data!P7 -> 53 | M159: =data!Q7 -> 72 | N159: =data!R7 -> 93 | O159: =data!S7 -> 88 | P159: =data!T7 -> 93 | Q159: =data!U7 -> 88 | R159: =data!V7 -> 64 | S159: =data!W7 -> 48 | T159: =data!X7 -> 18 | U159: =data!Y7 -> 12 | W159: Z | AB159: Is | AC159: [kWh/m2] | AF159: =data!N7 -> 20 | AG159: =data!O7 -> 28 | AH159: =data!P7 -> 53 | AI159: =data!Q7 -> 72 | AJ159: =data!R7 -> 93 | AK159: =data!S7 -> 88 | AL159: =data!T7 -> 93 | AM159: =data!U7 -> 88 | AN159: =data!V7 -> 64 | AO159: =data!W7 -> 48 | AP159: =data!X7 -> 18 | AQ159: =data!Y7 -> 12
A160: H | F160: Is | G160: [kWh/m2] | J160: =data!N8 -> 23 | K160: =data!O8 -> 40 | L160: =data!P8 -> 79 | M160: =data!Q8 -> 118 | N160: =data!R8 -> 161 | O160: =data!S8 -> 166 | P160: =data!T8 -> 162 | Q160: =data!U8 -> 143 | R160: =data!V8 -> 96 | S160: =data!W8 -> 57 | T160: =data!X8 -> 24 | U160: =data!Y8 -> 17 | W160: H | AB160: Is | AC160: [kWh/m2] | AF160: =data!N8 -> 23 | AG160: =data!O8 -> 40 | AH160: =data!P8 -> 79 | AI160: =data!Q8 -> 118 | AJ160: =data!R8 -> 161 | AK160: =data!S8 -> 166 | AL160: =data!T8 -> 162 | AM160: =data!U8 -> 143 | AN160: =data!V8 -> 96 | AO160: =data!W8 -> 57 | AP160: =data!X8 -> 24 | AQ160: =data!Y8 -> 17
A162: Celková sběrná plocha oken | I162: S | J162: J | K162: V | L162: Z | M162: H | W162: Celková sběrná plocha oken | AE162: S | AF162: J | AG162: V | AH162: Z | AI162: H
A163: S | F163: As | G163: [m2] | M163: =I145 -> 0 | W163: S | AB163: As | AC163: [m2] | AI163: =AE145 -> 0
A164: J | F164: As | G164: [m2] | M164: =J145 -> 0 | W164: J | AB164: As | AC164: [m2] | AI164: =AF145 -> 0
A165: V | F165: As | G165: [m2] | M165: =K145 -> 0 | W165: V | AB165: As | AC165: [m2] | AI165: =AG145 -> 0
A166: Z | F166: As | G166: [m2] | M166: =L145 -> 0 | W166: Z | AB166: As | AC166: [m2] | AI166: =AH145 -> 0
A167: H | F167: As | G167: [m2] | M167: =M145 -> 0 | W167: H | AB167: As | AC167: [m2] | AI167: =AI145 -> 0
A168: Celkem | F168: As | G168: [m2] | M168: =SUM(M163:M167) -> 0 | W168: Celkem | AB168: As | AC168: [m2] | AI168: =SUM(AI163:AI167) -> 0
A172: Solární zisky | J172: leden | K172: únor | L172: březen | M172: duben | N172: květen | O172: červen | P172: červenec | Q172: srpen | R172: září | S172: říjen | T172: listopad | U172: prosinec | W172: Solární zisky | AF172: leden | AG172: únor | AH172: březen | AI172: duben | AJ172: květen | AK172: červen | AL172: červenec | AM172: srpen | AN172: září | AO172: říjen | AP172: listopad | AQ172: prosinec
A173: S | F173: Qs | G173: [kWh] | J173: =$M163*J156 -> 0 | K173: =$M163*K156 -> 0 | L173: 0 | M173: 0 | N173: 0 | O173: 0 | P173: 0 | Q173: 0 | R173: 0 | S173: 0 | T173: 0 | U173: 0 | W173: S | AB173: Qs | AC173: [kWh] | AF173: =$M163*AF156 -> 0 | AG173: 0 | AH173: 0 | AI173: 0 | AJ173: 0 | AK173: 0 | AL173: 0 | AM173: 0 | AN173: 0 | AO173: 0 | AP173: 0 | AQ173: 0
A174: J | F174: Qs | G174: [kWh] | J174: =$M164*J157 -> 0 | K174: 0 | L174: 0 | M174: 0 | N174: 0 | O174: 0 | P174: 0 | Q174: 0 | R174: 0 | S174: 0 | T174: 0 | U174: 0 | W174: J | AB174: Qs | AC174: [kWh] | AF174: =$M164*AF157 -> 0 | AG174: 0 | AH174: 0 | AI174: 0 | AJ174: 0 | AK174: 0 | AL174: 0 | AM174: 0 | AN174: 0 | AO174: 0 | AP174: 0 | AQ174: 0
A175: V | F175: Qs | G175: [kWh] | J175: =$M165*J158 -> 0 | K175: 0 | L175: 0 | M175: 0 | N175: 0 | O175: 0 | P175: 0 | Q175: 0 | R175: 0 | S175: 0 | T175: 0 | U175: 0 | W175: V | AB175: Qs | AC175: [kWh] | AF175: =$M165*AF158 -> 0 | AG175: 0 | AH175: 0 | AI175: 0 | AJ175: 0 | AK175: 0 | AL175: 0 | AM175: 0 | AN175: 0 | AO175: 0 | AP175: 0 | AQ175: 0
A176: Z | F176: Qs | G176: [kWh] | J176: =$M166*J159 -> 0 | K176: 0 | L176: 0 | M176: 0 | N176: 0 | O176: 0 | P176: 0 | Q176: 0 | R176: 0 | S176: 0 | T176: 0 | U176: 0 | W176: Z | AB176: Qs | AC176: [kWh] | AF176: =$M166*AF159 -> 0 | AG176: 0 | AH176: 0 | AI176: 0 | AJ176: 0 | AK176: 0 | AL176: 0 | AM176: 0 | AN176: 0 | AO176: 0 | AP176: 0 | AQ176: 0
A177: H | F177: Qs | G177: [kWh] | J177: =$M167*J160 -> 0 | K177: 0 | L177: 0 | M177: 0 | N177: 0 | O177: 0 | P177: 0 | Q177: 0 | R177: 0 | S177: 0 | T177: 0 | U177: 0 | W177: H | AB177: Qs | AC177: [kWh] | AF177: =$M167*AF160 -> 0 | AG177: 0 | AH177: 0 | AI177: 0 | AJ177: 0 | AK177: 0 | AL177: 0 | AM177: 0 | AN177: 0 | AO177: 0 | AP177: 0 | AQ177: 0
A179: Celkové tepelné zisky | W179: Celkové tepelné zisky
A180: Solární zisky | F180: Qs | G180: [kWh] | J180: =SUM(J173:J177) -> 0 | K180: 0 | L180: 0 | M180: 0 | N180: 0 | O180: 0 | P180: 0 | Q180: 0 | R180: 0 | S180: 0 | T180: 0 | U180: 0 | W180: Solární zisky | AB180: Qs | AC180: [kWh] | AF180: =SUM(AF173:AF177) -> 0 | AG180: 0 | AH180: 0 | AI180: 0 | AJ180: 0 | AK180: 0 | AL180: 0 | AM180: 0 | AN180: 0 | AO180: 0 | AP180: 0 | AQ180: 0
G181: [GJ] | J181: =J180/(1000/3.6) -> 0 | K181: =K180/(1000/3.6) -> 0 | L181: =L180/(1000/3.6) -> 0 | M181: =M180/(1000/3.6) -> 0 | N181: =N180/(1000/3.6) -> 0 | O181: 0 | P181: 0 | Q181: 0 | R181: 0 | S181: 0 | T181: 0 | U181: 0 | AC181: [GJ] | AF181: =AF180/(1000/3.6) -> 0 | AG181: =AG180/(1000/3.6) -> 0 | AH181: =AH180/(1000/3.6) -> 0 | AI181: =AI180/(1000/3.6) -> 0 | AJ181: =AJ180/(1000/3.6) -> 0 | AK181: 0 | AL181: 0 | AM181: 0 | AN181: 0 | AO181: 0 | AP181: 0 | AQ181: 0
A182: Vnitřní zisky | F182: Qi | G182: [kWh] | J182: =$I$118*J151/1000 -> 0 | K182: =$I$118*K151/1000 -> 0 | L182: 0 | M182: 0 | N182: 0 | O182: 0 | P182: 0 | Q182: 0 | R182: 0 | S182: 0 | T182: 0 | U182: 0 | W182: Vnitřní zisky | AB182: Qi | AC182: [kWh] | AF182: =$AE$118*AF151/1000 -> 0 | AG182: =$AE$118*AG151/1000 -> 0 | AH182: 0 | AI182: 0 | AJ182: 0 | AK182: 0 | AL182: 0 | AM182: 0 | AN182: 0 | AO182: 0 | AP182: 0 | AQ182: 0
G183: [GJ] | J183: =J182/(1000/3.6) -> 0 | K183: =K182/(1000/3.6) -> 0 | L183: =L182/(1000/3.6) -> 0 | M183: =M182/(1000/3.6) -> 0 | N183: =N182/(1000/3.6) -> 0 | O183: 0 | P183: 0 | Q183: 0 | R183: 0 | S183: 0 | T183: 0 | U183: 0 | AC183: [GJ] | AF183: =AF182/(1000/3.6) -> 0 | AG183: =AG182/(1000/3.6) -> 0 | AH183: =AH182/(1000/3.6) -> 0 | AI183: =AI182/(1000/3.6) -> 0 | AJ183: =AJ182/(1000/3.6) -> 0 | AK183: 0 | AL183: 0 | AM183: 0 | AN183: 0 | AO183: 0 | AP183: 0 | AQ183: 0
A184: Celkové zisky | F184: Qg | G184: [kWh] | J184: =J182+J180 -> 0 | K184: =K182+K180 -> 0 | L184: =L182+L180 -> 0 | M184: =M182+M180 -> 0 | N184: =N182+N180 -> 0 | O184: 0 | P184: 0 | Q184: 0 | R184: 0 | S184: 0 | T184: 0 | U184: 0 | W184: Celkové zisky | AB184: Qg | AC184: [kWh] | AF184: =AF182+AF180 -> 0 | AG184: =AG182+AG180 -> 0 | AH184: =AH182+AH180 -> 0 | AI184: =AI182+AI180 -> 0 | AJ184: =AJ182+AJ180 -> 0 | AK184: 0 | AL184: 0 | AM184: 0 | AN184: 0 | AO184: 0 | AP184: 0 | AQ184: 0
A186: Využitelnost tepelných zisků | W186: Využitelnost tepelných zisků
A187: Tepelná ztráta budovy | F187: Ql | G187: [kWh] | J187: =J100 -> 0 | K187: 0 | L187: 0 | M187: 0 | N187: 0 | O187: 0 | P187: 0 | Q187: 0 | R187: 0 | S187: 0 | T187: 0 | U187: 0 | W187: Tepelná ztráta budovy | AB187: Ql | AC187: [kWh] | AF187: =AF100 -> 
A188: Poměr zisků a ztrát | F188: g | G188: [ - ] | J188: =J184/J187 ->  | K188: =K184/K187 ->  | W188: Poměr zisků a ztrát | AB188: g | AC188: [ - ] | AF188: =AF184/AF187 ->  | AG188: =AG184/AG187 ->  | AH188: =AH184/AH187 ->  | AI188: =AI184/AI187 ->  | AJ188: =AJ184/AJ187 ->  | AK188: =AK184/AK187 ->  | AL188: =AL184/AL187 ->  | AM188: =AM184/AM187 ->  | AN188: =AN184/AN187 ->  | AO188: =AO184/AO187 ->  | AP188: =AP184/AP187 ->  | AQ188: =AQ184/AQ187 -> 
A189: Parametr | F189: a0 | G189: [ - ] | I189: 1 | W189: Parametr | AB189: a0 | AC189: [ - ] | AE189: 1
A190: Časová konstanta zóny - 0 | F190: t0 | G190: [hod] | I190: 16 | W190: Časová konstanta zóny - 0 | AB190: t0 | AC190: [hod] | AE190: 16
A191: Parametr | F191: a | G191: [ - ] | I191: =I189+I190/I108 ->  | W191: Parametr | AB191: a | AC191: [ - ] | AE191: =AE189+AE190/AE108 -> 
A192: Stupeň využití zisků | F192: h | G192: [ - ] | J192: =IF(J152>$B$74,0,IF(J188=1,$I191/($I191+1),(1-J188^$I191)/(1-J188^($I191+1)))) ->  | K192: =IF(K152>$B$74,0,IF(K188=1,$I191/($I191+1),(1-K188^$I191)/(1-K188^($I191+1)))) ->  | W192: Stupeň využití zisků | AB192: h | AC192: [ - ] | AF192: =IF(AF152>$X$74,0,IF(AF188=1,$AE191/($AE191+1),(1-AF188^$AE191)/(1-AF188^($AE191+1)))) ->  | AG192: =IF(AG152>$X$74,0,IF(AG188=1,$AE191/($AE191+1),(1-AG188^$AE191)/(1-AG188^($AE191+1)))) -> 
A194: Využitelné zisky | W194: Využitelné zisky
A196: Využ. solární zisky | F196: Qs | G196: [kWh] | I196: =SUM(J196:U196) ->  | J196: =J192*J180 ->  | W196: Využ. solární zisky | AB196: Qs | AC196: [kWh] | AE196: =SUM(AF196:AQ196) ->  | AF196: =AF192*AF180 -> 
A197: Využ. vnitřní zisky | F197: Qi | G197: [kWh] | I197: =SUM(J197:U197) ->  | J197: =J192*J182 ->  | W197: Využ. vnitřní zisky | AB197: Qi | AC197: [kWh] | AE197: =SUM(AF197:AQ197) ->  | AF197: =AF192*AF182 -> 
A198: Využ. celkové zisky | F198: Qg | G198: [kWh] | I198: =SUM(J198:U198) ->  | J198: =J197+J196 ->  | K198: =K197+K196 ->  | L198: =L197+L196 ->  | M198: =M197+M196 ->  | N198: =N197+N196 ->  | W198: Využ. celkové zisky | AB198: Qg | AC198: [kWh] | AE198: =SUM(AF198:AQ198) ->  | AF198: =AF197+AF196 ->  | AG198: =AG197+AG196 ->  | AH198: =AH197+AH196 ->  | AI198: =AI197+AI196 ->  | AJ198: =AJ197+AJ196 -> 
A200: Měsíc | J200: leden | K200: únor | L200: březen | M200: duben | N200: květen | O200: červen | P200: červenec | Q200: srpen | R200: září | S200: říjen | T200: listopad | U200: prosinec | W200: Měsíc | AF200: leden | AG200: únor | AH200: březen | AI200: duben | AJ200: květen | AK200: červen | AL200: červenec | AM200: srpen | AN200: září | AO200: říjen | AP200: listopad | AQ200: prosinec
A201: Tepelná ztráta | F201: Ql | G201: [kWh] | I201: =SUM(J201:U201) -> 0 | J201: =J187 -> 0 | K201: =K187 -> 0 | L201: 0 | M201: 0 | N201: 0 | O201: 0 | P201: 0 | Q201: 0 | R201: 0 | S201: 0 | T201: 0 | U201: 0 | W201: Tepelná ztráta | AB201: Ql | AC201: [kWh] | AE201: =SUM(AF201:AQ201) ->  | AF201: =AF187 ->  | AG201: =AG187 -> 
A202: Celkové zisky | F202: Qg | G202: [kWh] | I202: =SUM(J202:U202) -> 0 | J202: =J184 -> 0 | K202: 0 | L202: 0 | M202: 0 | N202: 0 | O202: 0 | P202: 0 | Q202: 0 | R202: 0 | S202: 0 | T202: 0 | U202: 0 | W202: Celkové zisky | AB202: Qg | AC202: [kWh] | AE202: 0 | AF202: =AF184 -> 0 | AG202: 0 | AH202: 0 | AI202: 0 | AJ202: 0 | AK202: 0 | AL202: 0 | AM202: 0 | AN202: 0 | AO202: 0 | AP202: 0 | AQ202: 0
A203: Využitelné solární zisky | F203: Qs | G203: [kWh] | J203: =J196 ->  | K203: =K196 ->  | W203: Využitelné solární zisky | AB203: Qs | AC203: [kWh] | AF203: =AF196 ->  | AG203: =AG196 -> 
A204: Využitelné vnitřní zisky | F204: Qi | G204: [kWh] | I204: =SUM(J204:U204) ->  | J204: =J197 ->  | W204: Využitelné vnitřní zisky | AB204: Qi | AC204: [kWh] | AE204: =SUM(AF204:AQ204) ->  | AF204: =AF197 ->  | AG204: =AG197 -> 
A205: Využitelné celkové zisky | F205: Qg | G205: [kWh] | J205: =J198 ->  | W205: Využitelné celkové zisky | AB205: Qg | AC205: [kWh] | AF205: =AF198 ->  | AG205: =AG198 -> 
A206: Potřeba tepla na vytápění | F206: e | G206: [kWh] | I206: =SUM(J206:U206) ->  | J206: =J201-J205 ->  | K206: =K201-K205 ->  | L206: =L201-L205 ->  | M206: =M201-M205 ->  | N206: =N201-N205 ->  | O206: =O201-O205 ->  | W206: Potřeba tepla na vytápění | AB206: e | AC206: [kWh] | AE206: =SUM(AF206:AQ206) ->  | AF206: =AF201-AF205 ->  | AG206: =AG201-AG205 ->  | AH206: =AH201-AH205 ->  | AI206: =AI201-AI205 ->  | AJ206: =AJ201-AJ205 ->  | AK206: =AK201-AK205 -> 
A207: Měrná potřeba tepla na vytápění | F207: eA | G207: [kWh/(m2.a)] | I207: =I206/B76 ->  | W207: Měrná potřeba tepla na vytápění | AB207: eA | AC207: [kWh/(m2.a)] | AE207: =AE206/X76 -> 
A208: Zisky pokrývají ze ztrát | G208: %/100 | I208: =I205/I201 ->  | W208: Zisky pokrývají ze ztrát | AC208: %/100 | AE208: =AE205/AE201 -> 

Sheet data (hidden)
B1: stěna | C1: U | D1: U Norm dop | E1: U Norm*0,95 | F1: U pas min | G1: U pas max | J1: klima | AA1: Náklady A | AB1: s DPH | AD1: C | AE1: C1 | AG1: uznatelné | AH1: C2 | AJ1: uznatelné
B2: konstrukce | J2: měsíc | N2: leden | O2: únor | P2: březen | Q2: duben | R2: květen | S2: červen | T2: červenec | U2: srpen | V2: září | W2: říjen | X2: listopad | Y2: prosinec | AD2: Bez výměny | AE2: 0 | AF2: 0 | AG2: 0 | AH2: 0 | AI2: 0 | AJ2: 0
A3: 1 | B3: Cihly plné 30 cm | C3: 1.67 | D3: 0.25 | E3: =0.95*D3 -> 0.2375 | F3: 0.18 | G3: 0.12 | J3: průměrná venkovní teplota | L3: qe | M3: [°C] | N3: -1 | O3: 1 | P3: 4 | Q3: 9 | R3: 14.6 | S3: 17 | T3: 18.2 | U3: 18.8 | V3: 13.8 | W3: 9.4 | X3: 4 | Y3: -0.5 | AA3: obvodové stěny | AB3: 1495 | AD3: Kotel na biomasu s ruční dodávkou paliva | AE3: 50000 | AF3: 0.75 | AG3: =AE3/AF3 -> 66666.66667 | AH3: 40000 | AI3: 0.55 | AJ3: =AH3/AI3 -> 72727.27273
A4: 2 | B4: Cihly plné 45 cm | C4: 1.27 | D4: 0.25 | E4: =0.95*D4 -> 0.2375 | F4: 0.18 | G4: 0.12 | J4: intenzita slunečního záření | K4: S | L4: Is | M4: [kWh/m2] | N4: 7 | O4: 13 | P4: 23 | Q4: 32 | R4: 47 | S4: 52 | T4: 47 | U4: 38 | V4: 24 | W4: 17 | X4: 9 | Y4: 6 | AA4: otvorové výplně | AB4: 6900 | AD4: Kotel na biomasu s automatickou dodávkou paliva | AE4: 100000 | AF4: 0.75 | AG4: =AE4/AF4 -> 133333.3333 | AH4: 80000 | AI4: 0.55 | AJ4: =AH4/AI4 -> 145454.5455
A5: 3 | B5: Cihly plné 60 cm | C5: 1.03 | D5: 0.25 | E5: 0.2375 | F5: 0.18 | G5: 0.12 | J5: intenzita slunečního záření | K5: J | L5: Is | M5: [kWh/m2] | N5: 50 | O5: 56 | P5: 82 | Q5: 95 | R5: 97 | S5: 87 | T5: 93 | U5: 100 | V5: 95 | W5: 75 | X5: 36 | Y5: 29 | AA5: střecha | AB5: 1495 | AD5: Krbová kamna na biomasu s výměníkem s ruční dodávkou paliva | AE5: 50000 | AF5: 0.75 | AG5: 66666.66667 | AH5: 40000 | AI5: 0.55 | AJ5: 72727.27273
A6: 4 | B6: Zdivo smíšené 30 cm | C6: 2.91 | D6: 0.25 | E6: 0.2375 | F6: 0.18 | G6: 0.12 | J6: intenzita slunečního záření | K6: V | L6: Is | M6: [kWh/m2] | N6: 15 | O6: 26 | P6: 51 | Q6: 74 | R6: 104 | S6: 115 | T6: 100 | U6: 88 | V6: 60 | W6: 34 | X6: 14 | Y6: 11 | AA6: vnitřní kce | AB6: 575 | AD6: Krbová kamna na biomasu s výměníkem se samočinnou dodávkou paliva | AE6: 55000 | AF6: 0.75 | AG6: 73333.33333 | AH6: 45000 | AI6: 0.55 | AJ6: 81818.18182
A7: 5 | B7: Zdivo smíšené 45 cm | C7: 2.48 | D7: 0.25 | E7: 0.2375 | F7: 0.18 | G7: 0.12 | J7: intenzita slunečního záření | K7: Z | L7: Is | M7: [kWh/m2] | N7: 20 | O7: 28 | P7: 53 | Q7: 72 | R7: 93 | S7: 88 | T7: 93 | U7: 88 | V7: 64 | W7: 48 | X7: 18 | Y7: 12 | AA7: podlaha nad sklepem | AB7: 575 | AD7: Tepelné čerpadlo voda-voda | AE7: 100000 | AF7: 0.75 | AG7: 133333.3333 | AH7: 80000 | AI7: 0.55 | AJ7: 145454.5455
A8: 6 | B8: Zdivo smíšené 60 cm | C8: 2.16 | D8: 0.25 | E8: 0.2375 | F8: 0.18 | G8: 0.12 | J8: intenzita slunečního záření | K8: H | L8: Is | M8: [kWh/m2] | N8: 23 | O8: 40 | P8: 79 | Q8: 118 | R8: 161 | S8: 166 | T8: 162 | U8: 143 | V8: 96 | W8: 57 | X8: 24 | Y8: 17 | AA8: podlaha na terénu | AB8: 1955 | AD8: Tepelné čerpadlo země – voda | AE8: 100000 | AF8: 0.75 | AG8: 133333.3333 | AH8: 80000 | AI8: 0.55 | AJ8: 145454.5455
A9: 7 | B9: Děrované cihly 30 cm | C9: 1.56 | D9: 0.25 | E9: 0.2375 | F9: 0.18 | G9: 0.12 | J9: intenzita slunečního záření | K9: SV | L9: Is | M9: [kWh/m2] | N9: 12 | O9: 20 | P9: 36 | Q9: 51 | R9: 79 | S9: 91 | T9: 78 | U9: 64 | V9: 38 | W9: 21 | X9: 10 | Y9: 9 | AD9: Tepelné čerpadlo vzduch-voda | AE9: 75000 | AF9: 0.75 | AG9: 100000 | AH9: 60000 | AI9: 0.55 | AJ9: 109090.9091
A10: 8 | B10: Děrované cihly 45 cm | C10: 1.18 | D10: 0.25 | E10: 0.2375 | F10: 0.18 | G10: 0.12 | J10: intenzita slunečního záření | K10: SZ | L10: Is | M10: [kWh/m2] | N10: 12 | O10: 20 | P10: 37 | Q10: 49 | R10: 73 | S10: 73 | T10: 75 | U10: 63 | V10: 40 | W10: 25 | X10: 11 | Y10: 9 | AD10: Plynový kondenzační kotel | AE10: 18000 | AF10: 0.75 | AG10: 24000 | AH10: 15000 | AI10: 0.55 | AJ10: 27272.72727
A11: 9 | B11: Děrované cihly 60 cm | C11: 0.95 | D11: 0.25 | E11: 0.2375 | F11: 0.18 | G11: 0.12 | J11: intenzita slunečního záření | K11: JV | L11: Is | M11: [kWh/m2] | N11: 37 | O11: 47 | P11: 73 | Q11: 92 | R11: 109 | S11: 108 | T11: 103 | U11: 101 | V11: 82 | W11: 51 | X11: 25 | Y11: 23 | AD11: C3
A12: 10 | B12: Tvárnice šedé 30 cm | C12: 1.59 | D12: 0.25 | E12: 0.2375 | F12: 0.18 | G12: 0.12 | J12: intenzita slunečního záření | K12: JZ | L12: Is | M12: [kWh/m2] | N12: 44 | O12: 51 | P12: 76 | Q12: 86 | R12: 98 | S12: 88 | T12: 97 | U12: 100 | V12: 86 | W12: 71 | X12: 32 | Y12: 26 | AD12: Žádný
A13: 11 | B13: Tvárnice šedé 45 cm | C13: 1.2 | D13: 0.25 | E13: 0.2375 | F13: 0.18 | G13: 0.12 | AD13: Solární systém pro ohřev vody | AE13: 35000 | AF13: 0.4 | AG13: =AE13/AF13 -> 87500
A14: 12 | B14: Tvárnice šedé 60 cm | C14: 0.97 | D14: 0.25 | E14: 0.2375 | F14: 0.18 | G14: 0.12 | AD14: Solární systém pro ohřev vody a přitápění | AE14: 50000 | AF14: 0.4 | AG14: =AE14/AF14 -> 125000
A15: 13 | B15: Moderní děrované cihly 30 cm | C15: 0.7 | D15: 0.25 | E15: 0.2375 | F15: 0.18 | G15: 0.12 | AD15: posudek | AE15: 5000
A16: 14 | B16: Moderní děrované cihly 45 cm | C16: 0.49 | D16: 0.25 | E16: 0.2375 | F16: 0.18 | G16: 0.12
A17: 15 | B17: Moderní děrované cihly 60 cm | C17: 0.38 | D17: 0.25 | E17: 0.2375 | F17: 0.18 | G17: 0.12 | AD17: výběr zdroje dle zadání pro A+C | AE17: =IF('navrh opatreni a vysledky'!$C$30=data!$AD2,data!AE2,0) -> 0 | AF17: =IF('navrh opatreni a vysledky'!$C$30=data!$AD2,data!AF2,0) -> 0 | AG17: =IF('navrh opatreni a vysledky'!$C$30=data!$AD2,data!AG2,0) -> 0 | AH17: =IF('navrh opatreni a vysledky'!$C$30=data!$AD2,data!AH2,0) -> 0 | AI17: =IF('navrh opatreni a vysledky'!$C$30=data!$AD2,data!AI2,0) -> 0 | AJ17: =IF('navrh opatreni a vysledky'!$C$30=data!$AD2,data!AJ2,0) -> 0
A18: 16 | B18: Moderní pórobeton 30 cm | C18: 0.58 | D18: 0.25 | E18: 0.2375 | F18: 0.18 | G18: 0.12 | AE18: =IF('navrh opatreni a vysledky'!$C$30=data!$AD3,data!AE3,0) -> 0 | AF18: =IF('navrh opatreni a vysledky'!$C$30=data!$AD3,data!AF3,0) -> 0 | AG18: =IF('navrh opatreni a vysledky'!$C$30=data!$AD3,data!AG3,0) -> 0 | AH18: =IF('navrh opatreni a vysledky'!$C$30=data!$AD3,data!AH3,0) -> 0 | AI18: =IF('navrh opatreni a vysledky'!$C$30=data!$AD3,data!AI3,0) -> 0 | AJ18: =IF('navrh opatreni a vysledky'!$C$30=data!$AD3,data!AJ3,0) -> 0
A19: 17 | B19: Moderní pórobeton 45 cm | C19: 0.4 | D19: 0.25 | E19: 0.2375 | F19: 0.18 | G19: 0.12 | AE19: =IF('navrh opatreni a vysledky'!$C$30=data!$AD4,data!AE4,0) -> 0 | AF19: =IF('navrh opatreni a vysledky'!$C$30=data!$AD4,data!AF4,0) -> 0 | AG19: =IF('navrh opatreni a vysledky'!$C$30=data!$AD4,data!AG4,0) -> 0 | AH19: =IF('navrh opatreni a vysledky'!$C$30=data!$AD4,data!AH4,0) -> 0 | AI19: =IF('navrh opatreni a vysledky'!$C$30=data!$AD4,data!AI4,0) -> 0 | AJ19: =IF('navrh opatreni a vysledky'!$C$30=data!$AD4,data!AJ4,0) -> 0
A20: 18 | B20: Moderní pórobeton 60 cm | C20: 0.31 | D20: 0.25 | E20: 0.2375 | F20: 0.18 | G20: 0.12 | AE20: =IF('navrh opatreni a vysledky'!$C$30=data!$AD5,data!AE5,0) -> 0 | AF20: =IF('navrh opatreni a vysledky'!$C$30=data!$AD5,data!AF5,0) -> 0 | AG20: =IF('navrh opatreni a vysledky'!$C$30=data!$AD5,data!AG5,0) -> 0 | AH20: =IF('navrh opatreni a vysledky'!$C$30=data!$AD5,data!AH5,0) -> 0 | AI20: =IF('navrh opatreni a vysledky'!$C$30=data!$AD5,data!AI5,0) -> 0 | AJ20: =IF('navrh opatreni a vysledky'!$C$30=data!$AD5,data!AJ5,0) -> 0
A21: 19 | B21: Vápenopískové cihly 30 cm | C21: 1.75 | D21: 0.25 | E21: 0.2375 | F21: 0.18 | G21: 0.12 | AE21: =IF('navrh opatreni a vysledky'!$C$30=data!$AD6,data!AE6,0) -> 0 | AF21: =IF('navrh opatreni a vysledky'!$C$30=data!$AD6,data!AF6,0) -> 0 | AG21: =IF('navrh opatreni a vysledky'!$C$30=data!$AD6,data!AG6,0) -> 0 | AH21: =IF('navrh opatreni a vysledky'!$C$30=data!$AD6,data!AH6,0) -> 0 | AI21: =IF('navrh opatreni a vysledky'!$C$30=data!$AD6,data!AI6,0) -> 0 | AJ21: =IF('navrh opatreni a vysledky'!$C$30=data!$AD6,data!AJ6,0) -> 0
A22: 20 | B22: Vápenopískové cihly 45 cm | C22: 1.34 | D22: 0.25 | E22: 0.2375 | F22: 0.18 | G22: 0.12 | AE22: =IF('navrh opatreni a vysledky'!$C$30=data!$AD7,data!AE7,0) -> 0 | AF22: =IF('navrh opatreni a vysledky'!$C$30=data!$AD7,data!AF7,0) -> 0 | AG22: =IF('navrh opatreni a vysledky'!$C$30=data!$AD7,data!AG7,0) -> 0 | AH22: =IF('navrh opatreni a vysledky'!$C$30=data!$AD7,data!AH7,0) -> 0 | AI22: =IF('navrh opatreni a vysledky'!$C$30=data!$AD7,data!AI7,0) -> 0 | AJ22: =IF('navrh opatreni a vysledky'!$C$30=data!$AD7,data!AJ7,0) -> 0
A23: 21 | B23: Vápenopískové cihly 60 cm | C23: 1.09 | D23: 0.25 | E23: 0.2375 | F23: 0.18 | G23: 0.12 | AE23: =IF('navrh opatreni a vysledky'!$C$30=data!$AD8,data!AE8,0) -> 0 | AF23: =IF('navrh opatreni a vysledky'!$C$30=data!$AD8,data!AF8,0) -> 0 | AG23: =IF('navrh opatreni a vysledky'!$C$30=data!$AD8,data!AG8,0) -> 0 | AH23: =IF('navrh opatreni a vysledky'!$C$30=data!$AD8,data!AH8,0) -> 0 | AI23: =IF('navrh opatreni a vysledky'!$C$30=data!$AD8,data!AI8,0) -> 0 | AJ23: =IF('navrh opatreni a vysledky'!$C$30=data!$AD8,data!AJ8,0) -> 0
A24: 22 | B24: Porotherm 30 P+D - běžná malta | C24: 0.74 | D24: 0.25 | E24: =0.95*D24 -> 0.2375 | F24: 0.18 | G24: 0.12 | AE24: =IF('navrh opatreni a vysledky'!$C$30=data!$AD9,data!AE9,0) -> 0 | AF24: =IF('navrh opatreni a vysledky'!$C$30=data!$AD9,data!AF9,0) -> 0 | AG24: =IF('navrh opatreni a vysledky'!$C$30=data!$AD9,data!AG9,0) -> 0 | AH24: =IF('navrh opatreni a vysledky'!$C$30=data!$AD9,data!AH9,0) -> 0 | AI24: =IF('navrh opatreni a vysledky'!$C$30=data!$AD9,data!AI9,0) -> 0 | AJ24: =IF('navrh opatreni a vysledky'!$C$30=data!$AD9,data!AJ9,0) -> 0
A25: 23 | B25: Porotherm 30 Profi - tenké spáry | C25: 0.54 | D25: 0.25 | E25: 0.2375 | F25: 0.18 | G25: 0.12 | AE25: =IF('navrh opatreni a vysledky'!$C$30=data!$AD10,data!AE10,0) -> 0 | AF25: =IF('navrh opatreni a vysledky'!$C$30=data!$AD10,data!AF10,0) -> 0 | AG25: =IF('navrh opatreni a vysledky'!$C$30=data!$AD10,data!AG10,0) -> 0 | AH25: =IF('navrh opatreni a vysledky'!$C$30=data!$AD10,data!AH10,0) -> 0 | AI25: =IF('navrh opatreni a vysledky'!$C$30=data!$AD10,data!AI10,0) -> 0 | AJ25: =IF('navrh opatreni a vysledky'!$C$30=data!$AD10,data!AJ10,0) -> 0
A26: 24 | B26: Porotherm 36,5 P+D - běžná malta | C26: 0.43 | D26: 0.25 | E26: 0.2375 | F26: 0.18 | G26: 0.12 | AE26: =SUM(AE17:AE25) -> 0 | AF26: =SUM(AF17:AF25) -> 0 | AG26: 0 | AH26: 0 | AI26: 0 | AJ26: 0
A27: 25 | B27: Porotherm 36,5 Profi - tenké spáry | C27: 0.36 | D27: 0.25 | E27: 0.2375 | F27: 0.18 | G27: 0.12
A28: 26 | B28: Porotherm 44 P+D - běžná malta | C28: 0.39 | D28: 0.25 | E28: 0.2375 | F28: 0.18 | G28: 0.12 | AD28: výběr solára dle zadání pro A+C | AE28: =IF('navrh opatreni a vysledky'!$C$32=data!$AD13,data!AE13,0) -> 0 | AF28: =IF('navrh opatreni a vysledky'!$C$32=data!$AD13,data!AF13,0) -> 0 | AG28: =IF('navrh opatreni a vysledky'!$C$32=data!$AD13,data!AG13,0) -> 0
A29: 27 | B29: Porotherm 44 Profi - tenké spáry | C29: 0.29 | D29: 0.25 | E29: 0.2375 | F29: 0.18 | G29: 0.12 | AE29: =IF('navrh opatreni a vysledky'!$C$32=data!$AD14,data!AE14,0) -> 0 | AF29: =IF('navrh opatreni a vysledky'!$C$32=data!$AD14,data!AF14,0) -> 0 | AG29: =IF('navrh opatreni a vysledky'!$C$32=data!$AD14,data!AG14,0) -> 0
A30: 28 | B30: Porotherm 50 Hi CB - tenké spáry | C30: 0.17 | D30: 0.25 | E30: 0.2375 | F30: 0.18 | G30: 0.12 | AE30: =IF('navrh opatreni a vysledky'!$C$32=data!$AD15,data!AE15,0) -> 0 | AF30: =IF('navrh opatreni a vysledky'!$C$32=data!$AD15,data!AF15,0) -> 0 | AG30: =IF('navrh opatreni a vysledky'!$C$32=data!$AD15,data!AG15,0) -> 0
A31: 29 | B31: Požadavek na stěny od roku 1979 | C31: 0.89 | D31: 0.25 | E31: =0.95*D31 -> 0.2375 | F31: 0.18 | G31: 0.12 | AE31: =SUM(AE28:AE30) -> 0 | AF31: =SUM(AF28:AF30) -> 0 | AG31: 0
A32: 30 | B32: Požadavek na stěny od roku 1992 | C32: 0.46 | D32: 0.25 | E32: 0.2375 | F32: 0.18 | G32: 0.12
A33: 31 | B33: Požadavek na těžké stěny od roku 2002 | C33: 0.38 | D33: 0.25 | E33: 0.2375 | F33: 0.18 | G33: 0.12 | AD33: výběr zdroje dle zadání pro C | AH33: =IF('podminky C'!$E$7=data!$AD2,data!AH2,0) -> 0 | AI33: =IF('podminky C'!$E$7=data!$AD2,data!AI2,0) -> 0 | AJ33: =IF('podminky C'!$E$7=data!$AD2,data!AJ2,0) -> 0
A34: 32 | B34: Požadavek na lehké stěny od roku 2002 | C34: 0.3 | D34: 0.25 | E34: 0.2375 | F34: 0.18 | G34: 0.12 | AH34: =IF('podminky C'!$E$7=data!$AD3,data!AH3,0) -> 0 | AI34: =IF('podminky C'!$E$7=data!$AD3,data!AI3,0) -> 0 | AJ34: =IF('podminky C'!$E$7=data!$AD3,data!AJ3,0) -> 0
A35: 33 | B35: Požadavek na stěny od roku 2011 | C35: 0.3 | D35: 0.25 | E35: =0.95*D35 -> 0.2375 | F35: 0.18 | G35: 0.12 | AH35: =IF('podminky C'!$E$7=data!$AD4,data!AH4,0) -> 80000 | AI35: =IF('podminky C'!$E$7=data!$AD4,data!AI4,0) -> 0.55 | AJ35: =IF('podminky C'!$E$7=data!$AD4,data!AJ4,0) -> 145454.5455
A36: 34 | B36: Stěna pro nízkoenergetický dům | C36: 0.25 | D36: 0.25 | E36: 0.2375 | F36: 0.18 | G36: 0.12 | AH36: =IF('podminky C'!$E$7=data!$AD5,data!AH5,0) -> 0 | AI36: =IF('podminky C'!$E$7=data!$AD5,data!AI5,0) -> 0 | AJ36: =IF('podminky C'!$E$7=data!$AD5,data!AJ5,0) -> 0
AH37: =IF('podminky C'!$E$7=data!$AD6,data!AH6,0) -> 0 | AI37: =IF('podminky C'!$E$7=data!$AD6,data!AI6,0) -> 0 | AJ37: =IF('podminky C'!$E$7=data!$AD6,data!AJ6,0) -> 0
AH38: =IF('podminky C'!$E$7=data!$AD7,data!AH7,0) -> 0 | AI38: =IF('podminky C'!$E$7=data!$AD7,data!AI7,0) -> 0 | AJ38: =IF('podminky C'!$E$7=data!$AD7,data!AJ7,0) -> 0
AH39: =IF('podminky C'!$E$7=data!$AD8,data!AH8,0) -> 0 | AI39: =IF('podminky C'!$E$7=data!$AD8,data!AI8,0) -> 0 | AJ39: =IF('podminky C'!$E$7=data!$AD8,data!AJ8,0) -> 0
AH40: =IF('podminky C'!$E$7=data!$AD9,data!AH9,0) -> 0 | AI40: =IF('podminky C'!$E$7=data!$AD9,data!AI9,0) -> 0 | AJ40: =IF('podminky C'!$E$7=data!$AD9,data!AJ9,0) -> 0
AH41: =IF('podminky C'!$E$7=data!$AD10,data!AH10,0) -> 0 | AI41: =IF('podminky C'!$E$7=data!$AD10,data!AI10,0) -> 0 | AJ41: =IF('podminky C'!$E$7=data!$AD10,data!AJ10,0) -> 0
B42: strop a střecha | AH42: =SUM(AH33:AH41) -> 80000 | AI42: 0.55 | AJ42: 145454.5455
B43: konstrukce
A44: 1 | B44: Střecha plochá s železobetonovou deskou | C44: 0.5 | D44: 0.16 | E44: =0.95*D44 -> 0.152 | F44: 0.15 | G44: 0.1 | H44: do 45° | AD44: výběr solára dle zadání pro C | AH44: =IF('podminky C'!$E$8=data!$AD12,data!AE12,0) -> 0 | AI44: =IF('podminky C'!$E$8=data!$AD12,data!AF12,0) -> 0 | AJ44: =IF('podminky C'!$E$8=data!$AD12,data!AG12,0) -> 0
A45: 2 | B45: Střecha plochá s keramickými vložkami | C45: 1.34 | D45: 0.16 | E45: 0.152 | F45: 0.15 | G45: 0.1 | H45: do 45° | AH45: =IF('podminky C'!$E$8=data!$AD13,data!AE13,0) -> 35000 | AI45: =IF('podminky C'!$E$8=data!$AD13,data!AF13,0) -> 0.4 | AJ45: =IF('podminky C'!$E$8=data!$AD13,data!AG13,0) -> 87500
A46: 3 | B46: Střecha šikmá - izolace mezi krokvemi | C46: 1 | D46: 0.16 | E46: 0.152 | F46: 0.15 | G46: 0.1 | H46: do 45° | AH46: =IF('podminky C'!$E$8=data!$AD14,data!AE14,0) -> 0 | AI46: =IF('podminky C'!$E$8=data!$AD14,data!AF14,0) -> 0 | AJ46: =IF('podminky C'!$E$8=data!$AD14,data!AG14,0) -> 0
A47: 4 | B47: Střecha šikmá - izolace i pod krokvemi | C47: 1 | D47: 0.16 | E47: 0.152 | F47: 0.15 | G47: 0.1 | H47: do 45° | AH47: =SUM(AH44:AH46) -> 35000 | AI47: =SUM(AI44:AI46) -> 0.4 | AJ47: 87500
A48: 5 | B48: strop 5 | C48: 1 | D48: 0.16 | E48: 0.152 | F48: 0.15 | G48: 0.1 | H48: do 45°
A49: 6 | B49: strop 6 | C49: 1 | D49: 0.16 | E49: 0.152 | F49: 0.15 | G49: 0.1 | H49: do 45°
A50: 1 | B50: Střecha šikmá - izolace mezi krokvemi | C50: 0.28 | D50: 0.2 | E50: 0.19 | F50: 0.18 | G50: 0.12 | H50: nad 45°
A51: 2 | B51: Střecha šikmá - izolace i pod krokvemi | C51: 0.22 | D51: 0.2 | E51: 0.19 | F51: 0.18 | G51: 0.12 | H51: nad 45°
A52: 3 | B52: strop 9 | C52: 1 | D52: 0.2 | E52: 0.19 | F52: 0.18 | G52: 0.12 | H52: nad 45°
A53: 4 | B53: strop 10 | C53: 1 | D53: 0.2 | E53: 0.19 | F53: 0.18 | G53: 0.12 | H53: nad 45°
A54: 5 | B54: strop 11 | C54: 1 | D54: 0.2 | E54: 0.19 | F54: 0.18 | G54: 0.12 | H54: nad 45°
A55: 6 | B55: strop 12 | C55: 1 | D55: 0.2 | E55: 0.19 | F55: 0.18 | G55: 0.12 | H55: nad 45°
A56: 1 | B56: Trámový strop | C56: 0.99 | D56: 0.2 | E56: 0.19 | F56: 0.15 | G56: 0.1 | H56: podlaha půdy
A57: 2 | B57: Strop s nosnou keramickou vložkou | C57: 1.5 | D57: 0.2 | E57: 0.19 | F57: 0.15 | G57: 0.1 | H57: podlaha půdy
A58: 3 | B58: strop 15 | C58: 1 | D58: 0.2 | E58: 0.19 | F58: 0.15 | G58: 0.1 | H58: podlaha půdy
A59: 4 | B59: strop 16 | C59: 1 | D59: 0.2 | E59: 0.19 | F59: 0.15 | G59: 0.1 | H59: podlaha půdy
A60: 5 | B60: strop 17 | C60: 1 | D60: 0.2 | E60: 0.19 | F60: 0.15 | G60: 0.1 | H60: podlaha půdy
A61: 6 | B61: strop 18 | C61: 1 | D61: 0.2 | E61: 0.19 | F61: 0.15 | G61: 0.1 | H61: podlaha půdy
B66: podlaha
A67: 1 | B67: Podlaha na terénu bez izolace | C67: 1.7 | D67: 0.3 | E67: =0.95*D67 -> 0.285 | F67: 0.22 | G67: 0.15
A68: 2 | B68: Podlaha na terénu s izolací | C68: 0.97 | D68: 0.3 | E68: 0.285 | F68: 0.22 | G68: 0.15
A69: 1 | B69: Podlaha nad suterénem bez tep. izolace | C69: 1.53 | D69: 0.3 | E69: 0.285 | F69: 0.22 | G69: 0.15
A70: 2 | B70: Podlaha nad suterénem s tep. izolací | C70: 0.82 | D70: 0.3 | E70: 0.285 | F70: 0.22 | G70: 0.15
A71: 3 | B71: podlaha 5 | C71: 1 | D71: 0.3 | E71: 0.285 | F71: 0.22 | G71: 0.15
A72: 4 | B72: podlaha 6 | C72: 1 | D72: 0.3 | E72: 0.285 | F72: 0.22 | G72: 0.15
A73: 5 | B73: podlaha 7 | C73: 1 | D73: 0.3 | E73: 0.285 | F73: 0.22 | G73: 0.15
A74: 6 | B74: podlaha 8 | C74: 1 | D74: 0.3 | E74: 0.285 | F74: 0.22 | G74: 0.15
A75: 7 | B75: podlaha 9 | C75: 1 | D75: 0.3 | E75: 0.285 | F75: 0.22 | G75: 0.15
A76: 8 | B76: podlaha 10 | C76: 1 | D76: 0.3 | E76: 0.285 | F76: 0.22 | G76: 0.15
A77: 9 | C77: 1 | D77: 0.3 | E77: 0.285 | F77: 0.22 | G77: 0.15
A78: 10 | C78: 1 | D78: 0.3 | E78: 0.285 | F78: 0.22 | G78: 0.15
A79: 11 | C79: 1 | D79: 0.3 | E79: 0.285 | F79: 0.22 | G79: 0.15
B92: okna | I92: g
A93: 1 | B93: okno jednoduché s jedním sklem | C93: 4.5 | D93: 1.2 | E93: =0.95*D93 -> 1.14 | F93: 0.8 | G93: 0.6 | I93: 0.81
A94: 2 | B94: okno jednoduché s dvojsklem (starší) | C94: 2.5 | D94: 1.2 | E94: 1.14 | F94: 0.8 | G94: 0.6 | I94: 0.75
A95: 3 | B95: okno zdvojené (sešroubované rámy) s dvěma skly | C95: 2.4 | D95: 1.2 | E95: 1.14 | F95: 0.8 | G95: 0.6 | I95: 0.75
A96: 4 | B96: okno špaletové | C96: 2.35 | D96: 1.2 | E96: 1.14 | F96: 0.8 | G96: 0.6 | I96: 0.75
A97: 5 | B97: okno s kovovým rámem a drátosklem | C97: 3.5 | D97: 1.2 | E97: 1.14 | F97: 0.8 | G97: 0.6 | I97: 0.5
A98: 6 | B98: luxfery | C98: 4 | D98: 1.2 | E98: 1.14 | F98: 0.8 | G98: 0.6 | I98: 0.3
A99: 7 | B99: okno novější s dvojsklem | C99: 1.2 | D99: 1.2 | E99: 1.14 | F99: 0.8 | G99: 0.6 | I99: 0.75
A100: 8 | B100: dveře dřevěné vchodové plné | C100: 2.3 | D100: 1.2 | E100: 1.14 | F100: 0.8 | G100: 0.6 | I100: 0
A101: 9 | B101: dveře dřevěné vchodové s prosklením | C101: 4 | D101: 1.2 | E101: 1.14 | F101: 0.8 | G101: 0.6
A102: 10 | B102: dveře balkonové dřevěné | C102: 2.4 | D102: 1.2 | E102: 1.14 | F102: 0.8 | G102: 0.6
A103: 11 | B103: dveře vchodové novější | C103: 1.2 | D103: 1.2 | E103: 1.14 | F103: 0.8 | G103: 0.9
A104: 1 | B104: okno střešní jednoduché s jedním sklem | C104: 4.5 | D104: 1.1 | E104: 1.045 | F104: 0.9 | G104: 0.9
A105: 2 | B105: okno střešní starší jednoduché s dvojsklem | C105: 2.5 | D105: 1.1 | E105: 1.045 | F105: 0.9 | G105: 0.9
A106: 3 | B106: okno střešní zdvojené s dvěma skly | C106: 2.4 | D106: 1.1 | E106: 1.045 | F106: 0.9 | G106: 0.9
A107: 4 | B107: okno střešní novější s dvojsklem | C107: 1.2 | D107: 1.1 | E107: 1.045 | F107: 0.9 | G107: 0.9
A108: 5 | C108: 1
A109: 6 | C109: 1
A110: 7 | C110: 1
B117: vnitřní stěny
A118: 1 | B118: Cihly plné 10 cm | C118: 2.87 | D118: 0.4 | E118: =0.95*D118 -> 0.38 | F118: 0.3 | G118: 0.2
A119: 2 | B119: Cihly plné 20 cm | C119: 2.11 | D119: 0.4 | E119: 0.38 | F119: 0.3 | G119: 0.2
A120: 3 | B120: Cihly plné 30 cm | C120: 1.67 | D120: 0.4 | E120: 0.38 | F120: 0.3 | G120: 0.2
A121: 4 | B121: Zdivo smíšené 10 cm | C121: 3.8 | D121: 0.4 | E121: 0.38 | F121: 0.3 | G121: 0.2
A122: 5 | B122: Zdivo smíšené 20 cm | C122: 3.3 | D122: 0.4 | E122: 0.38 | F122: 0.3 | G122: 0.2
A123: 6 | B123: Zdivo smíšené 30 cm | C123: 2.91 | D123: 0.4 | E123: 0.38 | F123: 0.3 | G123: 0.2
A124: 7 | B124: Děrované cihly 10 cm | C124: 2.76 | D124: 0.4 | E124: 0.38 | F124: 0.3 | G124: 0.2
A125: 8 | B125: Děrované cihly 20 cm | C125: 2 | D125: 0.4 | E125: 0.38 | F125: 0.3 | G125: 0.2
A126: 9 | B126: Děrované cihly 30 cm | C126: 1.56 | D126: 0.4 | E126: 0.38 | F126: 0.3 | G126: 0.2
A127: 10 | B127: Tvárnice šedé 10 cm | C127: 2.79 | D127: 0.4 | E127: 0.38 | F127: 0.3 | G127: 0.2
A128: 11 | B128: Tvárnice šedé 20 cm | C128: 2.03 | D128: 0.4 | E128: 0.38 | F128: 0.3 | G128: 0.2
A129: 12 | B129: Tvárnice šedé 30 cm | C129: 1.59 | D129: 0.4 | E129: 0.38 | F129: 0.3 | G129: 0.2
A130: 13 | B130: Moderní děrované cihly 10 cm | C130: 1.6 | D130: 0.4 | E130: 0.38 | F130: 0.3 | G130: 0.2
A131: 14 | B131: Moderní děrované cihly 20 cm | C131: 0.98 | D131: 0.4 | E131: 0.38 | F131: 0.3 | G131: 0.2
A132: 15 | B132: Moderní děrované cihly 30 cm | C132: 0.7 | D132: 0.4 | E132: 0.38 | F132: 0.3 | G132: 0.2
A133: 16 | B133: Moderní pórobeton 10 cm | C133: 1.38 | D133: 0.4 | E133: 0.38 | F133: 0.3 | G133: 0.2
A134: 17 | B134: Moderní pórobeton 20 cm | C134: 0.82 | D134: 0.4 | E134: 0.38 | F134: 0.3 | G134: 0.2
A135: 18 | B135: Moderní pórobeton 30 cm | C135: 0.58 | D135: 0.4 | E135: 0.38 | F135: 0.3 | G135: 0.2
A136: 19 | B136: Vápenopískové cihly 10 cm | C136: 2.94 | D136: 0.4 | E136: =0.95*D136 -> 0.38 | F136: 0.3 | G136: 0.2
A137: 20 | B137: Vápenopískové cihly 20 cm | C137: 2.19 | D137: 0.4 | E137: 0.38 | F137: 0.3 | G137: 0.2
A138: 21 | B138: Vápenopískové cihly 30 cm | C138: 1.75 | D138: 0.4 | E138: 0.38 | F138: 0.3 | G138: 0.2
A140: 1 | B140: Dveře vnitřní plné | C140: 2 | D140: 2.3 | E140: =0.95*D140 -> 2.185 | F140: 1.7 | G140: 1.7
A141: 2 | B141: Dveře vnitřní 2/3 prosklené | C141: 3 | D141: 2.3 | E141: 2.185 | F141: 1.7 | G141: 1.7

Sheet doplnit (hidden)
A1: korekční faktory pro stínění oken
A2: tepelné zisky
A3: podmínky C
A4: Bonusy
A5: opravit bonusy ve výpočtu
